Workbook

Sheet Orçamento
O3: UNIDADE ESCOLAR | V3: CÓDIGO INEP
O4: ESCOLA ESTADUAL EDMO TEIXEIRA | V4: 52027147
A6: Nmax | O6: OBRA | S6: DATA | V6: CIDADE
A7: =MAX($C$18:$C$303) -> 4 | O7: REFORMA E IMPLANTAÇÃO | S7: 2020-04-23 | V7: IPORÁ
O9: CRE | R9: ENDEREÇO | V9: REFERÊNCIA AGETOP
O10: IPORÁ | R10: AV. CAIAPÓ 282, SAO FRANCISCO, CEP:76200-000 | V10: DEZ/18 | W10: DESONERADA
O12: ÁREA EXISTENTE (M²) | R12: ÁREA A CONSTRUIR (M²) | S12: ÁREA TOTAL CONSTRUÍDA (M²) | V12: REFERÊNCIA SINAPI
O13: 787.17 | R13: 337.2 | S13: 1124.37 | V13: MAI/19 | W13: DESONERADA
L15: FILTRO | O15: PLANILHA ORÇAMENTÁRIA
A16: Nível E | B16: Save Nivel | C16: Nível C | D16: Altura | E16: n1 | F16: n2 | G16: n3 | H16: n4 | I16: n5 | J16: Czero | K16: Cnível | L16: ↓ | M16: Nível | N16: Nível Corrigido | O16: ITEM | P16: TABELA | Q16: CODIGO | R16: DESCRIÇÃO DOS SERVIÇOS | S16: UNID | T16: QUANT | U16: MAT | V16: MO | W16: T.SERVIÇO | X16: OBSERVAÇÕES¹
A17: =CHOOSE(1+LOG(1+2*(ORÇAMENTO.Nivel="Nível 1")+4*(ORÇAMENTO.Nivel="Nível 2")+8*(ORÇAMENTO.Nivel="Nível 3")+16*(ORÇAMENTO.Nivel="Nível 4")+32*(ORÇAMENTO.Nivel="Serviço"),2),0,1,2,3,4,"S") -> S | B17: =IF(OR(C17="s",C17=0),OFFSET(B17,-1,0),C17) -> Save Nivel | C17: =IF(OFFSET(C17,-1,0)="L",1,IF(OFFSET(C17,-1,0)=1,2,IF(OR(A17="s",A17=0),"S",IF(AND(OFFSET(C17,-1,0)=2,A17=4),3,IF(AND(OR(OFFSET(C17,-1,0)="s",OFFSET(C17,-1,0)=0),A17<>"s",A17>OFFSET(B17,-1,0)),OFFSET(B17,-1,0),A17))))) -> S | D17: =IF(OR(C17="S",C17=0),0,IF(ISERROR(K17),J17,SMALL(J17:K17,1))) -> 0 | E17: =IF($C17=1,OFFSET(E17,-1,0)+1,OFFSET(E17,-1,0)) -> n1 | F17: =IF($C17=1,0,IF($C17=2,OFFSET(F17,-1,0)+1,OFFSET(F17,-1,0))) -> n2 | G17: =IF(AND($C17<=2,$C17<>0),0,IF($C17=3,OFFSET(G17,-1,0)+1,OFFSET(G17,-1,0))) -> n3 | H17: =IF(AND($C17<=3,$C17<>0),0,IF($C17=4,OFFSET(H17,-1,0)+1,OFFSET(H17,-1,0))) -> n4 | I17: =IF(AND($C17<=4,$C17<>0),0,IF(AND($C17="S",$W17>0),OFFSET(I17,-1,0)+1,OFFSET(I17,-1,0))) -> n5 | J17: =IF(OR($C17="S",$C17=0),0,MATCH(0,OFFSET($D17,1,$C17,ROW($C$303)-ROW($C17)),0)) -> 0 | K17: =IF(OR($C17="S",$C17=0),0,MATCH(OFFSET($D17,0,$C17)+1,OFFSET($D17,1,$C17,ROW($C$303)-ROW($C17)),0)) -> 0 | M17: Serviço | N17: Serviço | O17: - | P17: SINAPI | R17: (sem código) | S17: - | U17: 0 | V17: 0 | W17: 0
A18: 0 | C18: L | D18: =COUNTA(OFFSET(D18,1,0):D$303) -> 284 | E18: =LEFT(O19,1)-1 -> 0 | L18: F | M18: LOTE | N18: LOTE | O18: REFORMA E IMPLANTAÇÃO - ESCOLA ESTADUAL EDMO TEIXEIRA | W18: 384166.85
A19: 1 | B19: =IF(OR(C19="s",C19=0),OFFSET(B19,-1,0),C19) -> 1 | C19: =IF(OFFSET(C19,-1,0)="L",1,IF(OFFSET(C19,-1,0)=1,2,IF(OR(A19="s",A19=0),"S",IF(AND(OFFSET(C19,-1,0)=2,A19=4),3,IF(AND(OR(OFFSET(C19,-1,0)="s",OFFSET(C19,-1,0)=0),A19<>"s",A19>OFFSET(B19,-1,0)),OFFSET(B19,-1,0),A19))))) -> 1 | D19: =IF(OR(C19="S",C19=0),0,IF(ISERROR(K19),J19,SMALL(J19:K19,1))) -> 189 | E19: =IF($C19=1,OFFSET(E19,-1,0)+1,OFFSET(E19,-1,0)) -> 1 | F19: =IF($C19=1,0,IF($C19=2,OFFSET(F19,-1,0)+1,OFFSET(F19,-1,0))) -> 0 | G19: =IF(AND($C19<=2,$C19<>0),0,IF($C19=3,OFFSET(G19,-1,0)+1,OFFSET(G19,-1,0))) -> 0 | H19: =IF(AND($C19<=3,$C19<>0),0,IF($C19=4,OFFSET(H19,-1,0)+1,OFFSET(H19,-1,0))) -> 0 | I19: 0 | J19: =IF(OR($C19="S",$C19=0),0,MATCH(0,OFFSET($D19,1,$C19,ROW($C$303)-ROW($C19)),0)) -> 284 | K19: =IF(OR($C19="S",$C19=0),0,MATCH(OFFSET($D19,0,$C19)+1,OFFSET($D19,1,$C19,ROW($C$303)-ROW($C19)),0)) -> 189 | L19: F | M19: Nível 1 | N19: Nível 1 | O19: 1. | P19: AGETOP | R19: REFORMA
A20: 2 | B20: =IF(OR(C20="s",C20=0),OFFSET(B20,-1,0),C20) -> 2 | C20: =IF(OFFSET(C20,-1,0)="L",1,IF(OFFSET(C20,-1,0)=1,2,IF(OR(A20="s",A20=0),"S",IF(AND(OFFSET(C20,-1,0)=2,A20=4),3,IF(AND(OR(OFFSET(C20,-1,0)="s",OFFSET(C20,-1,0)=0),A20<>"s",A20>OFFSET(B20,-1,0)),OFFSET(B20,-1,0),A20))))) -> 2 | D20: =IF(OR(C20="S",C20=0),0,IF(ISERROR(K20),J20,SMALL(J20:K20,1))) -> 17 | E20: =IF($C20=1,OFFSET(E20,-1,0)+1,OFFSET(E20,-1,0)) -> 1 | F20: =IF($C20=1,0,IF($C20=2,OFFSET(F20,-1,0)+1,OFFSET(F20,-1,0))) -> 1 | G20: =IF(AND($C20<=2,$C20<>0),0,IF($C20=3,OFFSET(G20,-1,0)+1,OFFSET(G20,-1,0))) -> 0 | H20: =IF(AND($C20<=3,$C20<>0),0,IF($C20=4,OFFSET(H20,-1,0)+1,OFFSET(H20,-1,0))) -> 0 | I20: 0 | J20: 188 | K20: 17 | L20: F | M20: Nível 2 | N20: Nível 2 | O20: 1.1. | P20: AGETOP | R20: SERVIÇOS PRELIMINARES
A21: 3 | B21: =IF(OR(C21="s",C21=0),OFFSET(B21,-1,0),C21) -> 3 | C21: =IF(OFFSET(C21,-1,0)="L",1,IF(OFFSET(C21,-1,0)=1,2,IF(OR(A21="s",A21=0),"S",IF(AND(OFFSET(C21,-1,0)=2,A21=4),3,IF(AND(OR(OFFSET(C21,-1,0)="s",OFFSET(C21,-1,0)=0),A21<>"s",A21>OFFSET(B21,-1,0)),OFFSET(B21,-1,0),A21))))) -> 3 | D21: =IF(OR(C21="S",C21=0),0,IF(ISERROR(K21),J21,SMALL(J21:K21,1))) -> 12 | E21: 1 | F21: 1 | G21: 1 | H21: 0 | I21: 0 | J21: 16 | K21: 12 | L21: F | M21: Nível 3 | N21: Nível 3 | O21: 1.1.1. | P21: SINAPI | R21: DEMOLIÇÃO | S21: -
A22: S | B22: 3 | C22: S | D22: 0 | E22: 1 | F22: 1 | G22: 1 | H22: 0 | I22: 0 | J22: 0 | K22: 0 | L22: F | M22: Serviço | N22: Serviço | O22: 1.1.1.0.1. | P22: SINAPI | Q22: 98530 | R22: CORTE RASO E RECORTE DE ÁRVORE COM DIÂMETRO DE TRONCO MAIOR OU IGUAL A 0,40 M E MENOR QUE 0,60 M.AF_05/2018 | S22: UN | T22: 4
A23: S | B23: 3 | C23: S | D23: 0 | E23: 1 | F23: 1 | G23: 1 | H23: 0 | I23: 0 | J23: 0 | K23: 0 | L23: F | M23: Serviço | N23: Serviço | O23: 1.1.1.0.2. | P23: SINAPI | Q23: 98527 | R23: REMOÇÃO DE RAÍZES REMANESCENTES DE TRONCO DE ÁRVORE COM DIÂMETRO MAIOR OU IGUAL A 0,40 M E MENOR QUE 0,60 M.AF_05/2018 | S23: UN | T23: 4
A24: S | B24: 3 | C24: S | D24: 0 | E24: 1 | F24: 1 | G24: 1 | H24: 0 | I24: 0 | J24: 0 | K24: 0 | L24: F | M24: Serviço | N24: Serviço | O24: 1.1.1.0.3. | P24: AGETOP | Q24: 20141 | R24: DEMOLIÇAO DE CAIXA DESCARGA EXTERNA C/ TRANSP. ATÉ CB. E CARGA | S24: Un | T24: 1
A25: S | B25: 3 | C25: S | D25: 0 | E25: 1 | F25: 1 | G25: 1 | H25: 0 | I25: 0 | J25: 0 | K25: 0 | L25: F | M25: Serviço | N25: Serviço | O25: 1.1.1.0.4. | P25: AGETOP | Q25: 20137 | R25: DEMOLIÇAO BACIA SANITARIA C/ TRANSP. ATÉ CB. E CARGA | S25: Un | T25: 1
A26: S | B26: 3 | C26: S | D26: 0 | E26: 1 | F26: 1 | G26: 1 | H26: 0 | I26: 0 | J26: 0 | K26: 0 | L26: F | M26: Serviço | N26: Serviço | O26: 1.1.1.0.5. | P26: AGETOP | Q26: 20138 | R26: DEMOLIÇAO DE LAVATÓRIO C/ TRANSP. ATÉ CB. E CARGA | S26: Un | T26: 1
A27: S | B27: 3 | C27: S | D27: 0 | E27: 1 | F27: 1 | G27: 1 | H27: 0 | I27: 0 | J27: 0 | K27: 0 | L27: F | M27: Serviço | N27: Serviço | O27: 1.1.1.0.6. | P27: AGETOP | Q27: 20134 | R27: DEM.DE FORRO GESSO C/TRANSP.ATE CB.E CARGA | S27: m2 | T27: 48.91
A28: S | B28: 3 | C28: S | D28: 0 | E28: 1 | F28: 1 | G28: 1 | H28: 0 | I28: 0 | J28: 0 | K28: 0 | L28: F | M28: Serviço | N28: Serviço | O28: 1.1.1.0.7. | P28: AGETOP | Q28: 20121 | R28: DEM. MANUAL EM CONCR.SIMPLES C/TR.ATE CB.E CARGA (O.C.) | S28: m3 | T28: 34.963
A29: S | B29: 3 | C29: S | D29: 0 | E29: 1 | F29: 1 | G29: 1 | H29: 0 | I29: 0 | J29: 0 | K29: 0 | L29: F | M29: Serviço | N29: Serviço | O29: 1.1.1.0.8. | P29: AGETOP | Q29: 20101 | R29: DEMOLICAO COBERTURA TELHA CERAMICA C/ TRANSP. ATÉ CB. E CARGA | S29: m2 | T29: 415.52
A30: S | B30: 3 | C30: S | D30: 0 | E30: 1 | F30: 1 | G30: 1 | H30: 0 | I30: 0 | J30: 0 | K30: 0 | L30: F | M30: Serviço | N30: Serviço | O30: 1.1.1.0.9. | P30: AGETOP | Q30: 20109 | R30: DEM.PISO CIMENT.SOBRE LASTRO CONC.C/TR.ATE CB. E CARGA | S30: m2 | T30: 554.28
A31: S | B31: 3 | C31: S | D31: 0 | E31: 1 | F31: 1 | G31: 1 | H31: 0 | I31: 0 | J31: 0 | K31: 0 | L31: F | M31: Serviço | N31: Serviço | O31: 1.1.1.0.10. | P31: AGETOP | Q31: 20163 | R31: DEMOLIÇÃO DAS INSTALAÇÕES HIDROSANITÁRIAS E AFINS C/ TRANSP. ATÉ CB. E CARGA | S31: H | T31: 2
A32: S | B32: 3 | C32: S | D32: 0 | E32: 1 | F32: 1 | G32: 1 | H32: 0 | I32: 0 | J32: 0 | K32: 0 | L32: F | M32: Serviço | N32: Serviço | O32: 1.1.1.0.11. | P32: SINAPI | Q32: 74209/1 | R32: PLACA DE OBRA EM CHAPA DE ACO GALVANIZADO | S32: M2 | T32: 4.5 | X32: Referência: AGETOP - 21301
A33: 3 | B33: 3 | C33: 3 | D33: 4 | E33: 1 | F33: 1 | G33: 2 | H33: 0 | I33: 0 | J33: 4 | K33: 138 | L33: F | M33: Nível 3 | N33: Nível 3 | O33: 1.1.2. | P33: SINAPI | R33: DEMOLIÇÃO DE ITENS ELÉTRICOS | S33: -
A34: S | B34: 3 | C34: S | D34: 0 | E34: 1 | F34: 1 | G34: 2 | H34: 0 | I34: 0 | J34: 0 | K34: 0 | L34: F | M34: Serviço | N34: Serviço | O34: 1.1.2.0.1. | P34: SINAPI | Q34: 97661 | R34: REMOÇÃO DE CABOS ELÉTRICOS, DE FORMA MANUAL, SEM REAPROVEITAMENTO. AF_12/2017 | S34: M | T34: 2000
A35: S | B35: 3 | C35: S | D35: 0 | E35: 1 | F35: 1 | G35: 2 | H35: 0 | I35: 0 | J35: 0 | K35: 0 | L35: F | M35: Serviço | N35: Serviço | O35: 1.1.2.0.2. | P35: SINAPI | Q35: 97660 | R35: REMOÇÃO DE INTERRUPTORES/TOMADAS ELÉTRICAS, DE FORMA MANUAL, SEM REAPROVEITAMENTO. AF_12/2017 | S35: UN | T35: 35
A36: S | B36: 3 | C36: S | D36: 0 | E36: 1 | F36: 1 | G36: 2 | H36: 0 | I36: 0 | J36: 0 | K36: 0 | L36: F | M36: Serviço | N36: Serviço | O36: 1.1.2.0.3. | P36: SINAPI | Q36: 97665 | R36: REMOÇÃO DE LUMINÁRIAS, DE FORMA MANUAL, SEM REAPROVEITAMENTO. AF_12/2017 | S36: UN | T36: 60
A37: 2 | B37: 2 | C37: 2 | D37: 3 | E37: 1 | F37: 2 | G37: 0 | H37: 0 | I37: 0 | J37: 171 | K37: 3 | L37: F | M37: Nível 2 | N37: Nível 2 | O37: 1.2. | P37: AGETOP | R37: TRANSPORTES | S37: -
A38: S | B38: 2 | C38: S | D38: 0 | E38: 1 | F38: 2 | G38: 0 | H38: 0 | I38: 0 | J38: 0 | K38: 0 | L38: F | M38: Serviço | N38: Serviço | O38: 1.2.0.0.1. | P38: SINAPI | Q38: 72900 | R38: TRANSPORTE DE ENTULHO COM CAMINHAO BASCULANTE 6 M3, RODOVIA PAVIMENTADA, DMT 0,5 A 1,0 KM | S38: M3 | T38: 65.0352
A39: S | B39: 2 | C39: S | D39: 0 | E39: 1 | F39: 2 | G39: 0 | H39: 0 | I39: 0 | J39: 0 | K39: 0 | L39: F | M39: Serviço | N39: Serviço | O39: 1.2.0.0.2. | P39: SINAPI | Q39: 72897 | R39: CARGA MANUAL DE ENTULHO EM CAMINHAO BASCULANTE 6 M3 | S39: M3 | T39: 65.0352
A40: 2 | B40: 2 | C40: 2 | D40: 7 | E40: 1 | F40: 3 | G40: 0 | H40: 0 | I40: 0 | J40: 168 | K40: 7 | L40: F | M40: Nível 2 | N40: Nível 2 | O40: 1.3. | P40: AGETOP | R40: SERVIÇO EM TERRA | S40: -
A41: 3 | B41: 3 | C41: 3 | D41: 3 | E41: 1 | F41: 3 | G41: 1 | H41: 0 | I41: 0 | J41: 6 | K41: 3 | L41: F | M41: Nível 3 | N41: Nível 3 | O41: 1.3.1. | R41: SERVIÇO DE TERRA - REFERENTE A INSTALAÇÃO ELÉTRICA | S41: -
A42: S | B42: 3 | C42: S | D42: 0 | E42: 1 | F42: 3 | G42: 1 | H42: 0 | I42: 0 | J42: 0 | K42: 0 | L42: F | M42: Serviço | N42: Serviço | O42: 1.3.1.0.1. | P42: SINAPI | Q42: 93358 | R42: ESCAVAÇÃO MANUAL DE VALA COM PROFUNDIDADE MENOR OU IGUAL A 1,30 M. AF_03/2016 | S42: M3 | T42: 7.8 | X42: Referência: AGETOP - 40101
A43: S | B43: 3 | C43: S | D43: 0 | E43: 1 | F43: 3 | G43: 1 | H43: 0 | I43: 0 | J43: 0 | K43: 0 | L43: F | M43: Serviço | N43: Serviço | O43: 1.3.1.0.2. | P43: SINAPI | Q43: 96995 | R43: REATERRO MANUAL APILOADO COM SOQUETE. AF_10/2017 | S43: M3 | T43: 7.8 | X43: Referência: AGETOP - 40902
A44: 3 | B44: 3 | C44: 3 | D44: 3 | E44: 1 | F44: 3 | G44: 2 | H44: 0 | I44: 0 | J44: 3 | K44: 127 | L44: F | M44: Nível 3 | N44: Nível 3 | O44: 1.3.2. | R44: OUTROS SERVIÇOS | S44: -
A45: =CHOOSE(1+LOG(1+2*(ORÇAMENTO.Nivel="Nível 1")+4*(ORÇAMENTO.Nivel="Nível 2")+8*(ORÇAMENTO.Nivel="Nível 3")+16*(ORÇAMENTO.Nivel="Nível 4")+32*(ORÇAMENTO.Nivel="Serviço"),2),0,1,2,3,4,"S") -> S | B45: 3 | C45: S | D45: 0 | E45: =IF($C45=1,OFFSET(E45,-1,0)+1,OFFSET(E45,-1,0)) -> 1 | F45: =IF($C45=1,0,IF($C45=2,OFFSET(F45,-1,0)+1,OFFSET(F45,-1,0))) -> 3 | G45: =IF(AND($C45<=2,$C45<>0),0,IF($C45=3,OFFSET(G45,-1,0)+1,OFFSET(G45,-1,0))) -> 2 | H45: =IF(AND($C45<=3,$C45<>0),0,IF($C45=4,OFFSET(H45,-1,0)+1,OFFSET(H45,-1,0))) -> 0 | I45: =IF(AND($C45<=4,$C45<>0),0,IF(AND($C45="S",$W45>0),OFFSET(I45,-1,0)+1,OFFSET(I45,-1,0))) -> 0 | J45: 0 | K45: 0 | L45: F | M45: Serviço | N45: Serviço | O45: 1.3.2.0.1. | P45: SINAPI | Q45: 74005/1 | R45: COMPACTACAO MECANICA, SEM CONTROLE DO GC (C/COMPACTADOR PLACA 400 KG) | S45: M3 | T45: 139.85 | X45: Referência: AGETOP - 41009
A46: S | B46: 3 | C46: S | D46: 0 | E46: 1 | F46: 3 | G46: 2 | H46: 0 | I46: 0 | J46: 0 | K46: 0 | L46: F | M46: Serviço | N46: Serviço | O46: 1.3.2.0.2. | P46: AGETOP | Q46: 41140 | R46: REGULARIZAÇÃO DO TERRENO SEM APILOAMENTO COM TRANSPORTE MANUAL DA TERRA ESCAVADA | S46: m2 | T46: 699.26
A47: =CHOOSE(1+LOG(1+2*(ORÇAMENTO.Nivel="Nível 1")+4*(ORÇAMENTO.Nivel="Nível 2")+8*(ORÇAMENTO.Nivel="Nível 3")+16*(ORÇAMENTO.Nivel="Nível 4")+32*(ORÇAMENTO.Nivel="Serviço"),2),0,1,2,3,4,"S") -> 2 | B47: =IF(OR(C47="s",C47=0),OFFSET(B47,-1,0),C47) -> 2 | C47: =IF(OFFSET(C47,-1,0)="L",1,IF(OFFSET(C47,-1,0)=1,2,IF(OR(A47="s",A47=0),"S",IF(AND(OFFSET(C47,-1,0)=2,A47=4),3,IF(AND(OR(OFFSET(C47,-1,0)="s",OFFSET(C47,-1,0)=0),A47<>"s",A47>OFFSET(B47,-1,0)),OFFSET(B47,-1,0),A47))))) -> 2 | D47: =IF(OR(C47="S",C47=0),0,IF(ISERROR(K47),J47,SMALL(J47:K47,1))) -> 60 | E47: =IF($C47=1,OFFSET(E47,-1,0)+1,OFFSET(E47,-1,0)) -> 1 | F47: =IF($C47=1,0,IF($C47=2,OFFSET(F47,-1,0)+1,OFFSET(F47,-1,0))) -> 4 | G47: =IF(AND($C47<=2,$C47<>0),0,IF($C47=3,OFFSET(G47,-1,0)+1,OFFSET(G47,-1,0))) -> 0 | H47: =IF(AND($C47<=3,$C47<>0),0,IF($C47=4,OFFSET(H47,-1,0)+1,OFFSET(H47,-1,0))) -> 0 | I47: =IF(AND($C47<=4,$C47<>0),0,IF(AND($C47="S",$W47>0),OFFSET(I47,-1,0)+1,OFFSET(I47,-1,0))) -> 0 | J47: 161 | K47: 60 | L47: F | M47: Nível 2 | N47: Nível 2 | O47: 1.4. | R47: INSTALAÇÕES ELÉTRICAS | S47: -
A48: S | B48: 2 | C48: S | D48: 0 | E48: 1 | F48: 4 | G48: 0 | H48: 0 | I48: 0 | J48: 0 | K48: 0 | L48: F | M48: Serviço | N48: Serviço | O48: 1.4.0.0.1. | P48: AGETOP | Q48: 70351 | R48: BRACADEIRA METALICA TIPO "U" DIAM. 3/4" | S48: Un | T48: 350
A49: S | B49: 2 | C49: S | D49: 0 | E49: 1 | F49: 4 | G49: 0 | H49: 0 | I49: 0 | J49: 0 | K49: 0 | L49: F | M49: Serviço | N49: Serviço | O49: 1.4.0.0.2. | P49: AGETOP | Q49: 70352 | R49: BRACADEIRA METALICA TIPO "U" DIAM. 1" | S49: Un | T49: 100
A50: S | B50: 2 | C50: S | D50: 0 | E50: 1 | F50: 4 | G50: 0 | H50: 0 | I50: 0 | J50: 0 | K50: 0 | L50: F | M50: Serviço | N50: Serviço | O50: 1.4.0.0.3. | P50: AGETOP | Q50: 70355 | R50: BRACADEIRA METALICA TIPO "U" DIAM. 2" | S50: Un | T50: 18.5
A51: S | B51: 2 | C51: S | D51: 0 | E51: 1 | F51: 4 | G51: 0 | H51: 0 | I51: 0 | J51: 0 | K51: 0 | L51: F | M51: Serviço | N51: Serviço | O51: 1.4.0.0.4. | P51: AGETOP | Q51: 70421 | R51: BUCHA E ARRUELA METALICA DIAM. 3/4" | S51: PR | T51: 50
A52: S | B52: 2 | C52: S | D52: 0 | E52: 1 | F52: 4 | G52: 0 | H52: 0 | I52: 0 | J52: 0 | K52: 0 | L52: F | M52: Serviço | N52: Serviço | O52: 1.4.0.0.5. | P52: AGETOP | Q52: 70422 | R52: BUCHA E ARRUELA METALICA DIAM. 1" | S52: PR | T52: 10
A53: S | B53: 2 | C53: S | D53: 0 | E53: 1 | F53: 4 | G53: 0 | H53: 0 | I53: 0 | J53: 0 | K53: 0 | L53: F | M53: Serviço | N53: Serviço | O53: 1.4.0.0.6. | P53: AGETOP | Q53: 70425 | R53: BUCHA E ARRUELA METALICA DIAM. 2" | S53: PR | T53: 6
A54: S | B54: 2 | C54: S | D54: 0 | E54: 1 | F54: 4 | G54: 0 | H54: 0 | I54: 0 | J54: 0 | K54: 0 | L54: F | M54: Serviço | N54: Serviço | O54: 1.4.0.0.7. | P54: SINAPI | Q54: 92982 | R54: CABO DE COBRE FLEXÍVEL ISOLADO, 16 MM², ANTI-CHAMA 0,6/1,0 KV, PARA DISTRIBUIÇÃO - FORNECIMENTO E INSTALAÇÃO. AF_12/2015 | S54: M | T54: 30 | X54: Referência: AGETOP - 70510
A55: S | B55: 2 | C55: S | D55: 0 | E55: 1 | F55: 4 | G55: 0 | H55: 0 | I55: 0 | J55: 0 | K55: 0 | L55: F | M55: Serviço | N55: Serviço | O55: 1.4.0.0.8. | P55: SINAPI | Q55: 92984 | R55: CABO DE COBRE FLEXÍVEL ISOLADO, 25 MM², ANTI-CHAMA 0,6/1,0 KV, PARA DISTRIBUIÇÃO - FORNECIMENTO E INSTALAÇÃO. AF_12/2015 | S55: M | T55: 120 | X55: Referência: AGETOP - 70511
A56: S | B56: 2 | C56: S | D56: 0 | E56: 1 | F56: 4 | G56: 0 | H56: 0 | I56: 0 | J56: 0 | K56: 0 | L56: F | M56: Serviço | N56: Serviço | O56: 1.4.0.0.9. | P56: SINAPI | Q56: 96971 | R56: CORDOALHA DE COBRE NU 16 MM², NÃO ENTERRADA, COM ISOLADOR - FORNECIMENTO E INSTALAÇÃO. AF_12/2017 | S56: M | T56: 12 | X56: Referência: AGETOP - 70541
A57: S | B57: 2 | C57: S | D57: 0 | E57: 1 | F57: 4 | G57: 0 | H57: 0 | I57: 0 | J57: 0 | K57: 0 | L57: F | M57: Serviço | N57: Serviço | O57: 1.4.0.0.10. | P57: SINAPI | Q57: 91927 | R57: CABO DE COBRE FLEXÍVEL ISOLADO, 2,5 MM², ANTI-CHAMA 0,6/1,0 KV, PARA CIRCUITOS TERMINAIS - FORNECIMENTO E INSTALAÇÃO. AF_12/2015 | S57: M | T57: 1799 | X57: Referência: AGETOP - 70581
A58: S | B58: 2 | C58: S | D58: 0 | E58: 1 | F58: 4 | G58: 0 | H58: 0 | I58: 0 | J58: 0 | K58: 0 | L58: F | M58: Serviço | N58: Serviço | O58: 1.4.0.0.11. | P58: SINAPI | Q58: 91929 | R58: CABO DE COBRE FLEXÍVEL ISOLADO, 4 MM², ANTI-CHAMA 0,6/1,0 KV, PARA CIRCUITOS TERMINAIS - FORNECIMENTO E INSTALAÇÃO. AF_12/2015 | S58: M | T58: 294.2 | X58: Referência: AGETOP - 70582
A59: S | B59: 2 | C59: S | D59: 0 | E59: 1 | F59: 4 | G59: 0 | H59: 0 | I59: 0 | J59: 0 | K59: 0 | L59: F | M59: Serviço | N59: Serviço | O59: 1.4.0.0.12. | P59: SINAPI | Q59: 91931 | R59: CABO DE COBRE FLEXÍVEL ISOLADO, 6 MM², ANTI-CHAMA 0,6/1,0 KV, PARA CIRCUITOS TERMINAIS - FORNECIMENTO E INSTALAÇÃO. AF_12/2015 | S59: M | T59: 672 | X59: Referência: AGETOP - 70583
A60: S | B60: 2 | C60: S | D60: 0 | E60: 1 | F60: 4 | G60: 0 | H60: 0 | I60: 0 | J60: 0 | K60: 0 | L60: F | M60: Serviço | N60: Serviço | O60: 1.4.0.0.13. | P60: SINAPI | Q60: 91933 | R60: CABO DE COBRE FLEXÍVEL ISOLADO, 10 MM², ANTI-CHAMA 0,6/1,0 KV, PARA CIRCUITOS TERMINAIS - FORNECIMENTO E INSTALAÇÃO. AF_12/2015 | S60: M | T60: 150 | X60: Referência: AGETOP - 70584
A61: S | B61: 2 | C61: S | D61: 0 | E61: 1 | F61: 4 | G61: 0 | H61: 0 | I61: 0 | J61: 0 | K61: 0 | L61: F | M61: Serviço | N61: Serviço | O61: 1.4.0.0.14. | P61: SINAPI | Q61: 91935 | R61: CABO DE COBRE FLEXÍVEL ISOLADO, 16 MM², ANTI-CHAMA 0,6/1,0 KV, PARA CIRCUITOS TERMINAIS - FORNECIMENTO E INSTALAÇÃO. AF_12/2015 | S61: M | T61: 30 | X61: Referência: AGETOP - 70585
A62: =CHOOSE(1+LOG(1+2*(ORÇAMENTO.Nivel="Nível 1")+4*(ORÇAMENTO.Nivel="Nível 2")+8*(ORÇAMENTO.Nivel="Nível 3")+16*(ORÇAMENTO.Nivel="Nível 4")+32*(ORÇAMENTO.Nivel="Serviço"),2),0,1,2,3,4,"S") -> S | B62: 2 | C62: S | D62: 0 | E62: 1 | F62: 4 | G62: 0 | H62: 0 | I62: =IF(AND($C62<=4,$C62<>0),0,IF(AND($C62="S",$W62>0),OFFSET(I62,-1,0)+1,OFFSET(I62,-1,0))) -> 0 | J62: 0 | K62: 0 | L62: F | M62: Serviço | N62: Serviço | O62: 1.4.0.0.15. | P62: SINAPI | Q62: 92866 | R62: CAIXA SEXTAVADA 3" X 3", METÁLICA, INSTALADA EM LAJE - FORNECIMENTO E INSTALAÇÃO. AF_12/2015 | S62: UN | T62: 67 | X62: Referência: AGETOP - 70680
A63: S | B63: 2 | C63: S | D63: 0 | E63: 1 | F63: 4 | G63: 0 | H63: 0 | I63: 0 | J63: 0 | K63: 0 | L63: F | M63: Serviço | N63: Serviço | O63: 1.4.0.0.16. | P63: SINAPI | Q63: 92868 | R63: CAIXA RETANGULAR 4" X 2" MÉDIA (1,30 M DO PISO), METÁLICA, INSTALADA EM PAREDE - FORNECIMENTO E INSTALAÇÃO. AF_12/2015 | S63: UN | T63: 73 | X63: Referência: AGETOP - 70691
A64: S | B64: 2 | C64: S | D64: 0 | E64: 1 | F64: 4 | G64: 0 | H64: 0 | I64: 0 | J64: 0 | K64: 0 | L64: F | M64: Serviço | N64: Serviço | O64: 1.4.0.0.17. | P64: SINAPI | Q64: 92871 | R64: CAIXA RETANGULAR 4" X 4" MÉDIA (1,30 M DO PISO), METÁLICA, INSTALADA EM PAREDE - FORNECIMENTO E INSTALAÇÃO. AF_12/2015 | S64: UN | T64: 5 | X64: Referência: AGETOP - 70692
A65: S | B65: 2 | C65: S | D65: 0 | E65: =IF($C65=1,OFFSET(E65,-1,0)+1,OFFSET(E65,-1,0)) -> 1 | F65: =IF($C65=1,0,IF($C65=2,OFFSET(F65,-1,0)+1,OFFSET(F65,-1,0))) -> 4 | G65: =IF(AND($C65<=2,$C65<>0),0,IF($C65=3,OFFSET(G65,-1,0)+1,OFFSET(G65,-1,0))) -> 0 | H65: =IF(AND($C65<=3,$C65<>0),0,IF($C65=4,OFFSET(H65,-1,0)+1,OFFSET(H65,-1,0))) -> 0 | I65: 0 | J65: 0 | K65: 0 | L65: F | M65: Serviço | N65: Serviço | O65: 1.4.0.0.18. | P65: SINAPI | Q65: 97893 | R65: CAIXA ENTERRADA ELÉTRICA RETANGULAR, EM ALVENARIA COM BLOCOS DE CONCRETO, FUNDO COM BRITA, DIMENSÕES INTERNAS: 0,8X0,8X0,6 M. AF_05/2018 | S65: UN | T65: 4
A66: S | B66: 2 | C66: S | D66: 0 | E66: 1 | F66: 4 | G66: 0 | H66: 0 | I66: 0 | J66: 0 | K66: 0 | L66: F | M66: Serviço | N66: Serviço | O66: 1.4.0.0.19. | P66: SINAPI | Q66: 95817 | R66: CONDULETE DE PVC, TIPO X, PARA ELETRODUTO DE PVC SOLDÁVEL DN 25 MM (3/4''), APARENTE - FORNECIMENTO E INSTALAÇÃO. AF_11/2016 | S66: UN | T66: 70
A67: S | B67: 2 | C67: S | D67: 0 | E67: 1 | F67: 4 | G67: 0 | H67: 0 | I67: 0 | J67: 0 | K67: 0 | L67: F | M67: Serviço | N67: Serviço | O67: 1.4.0.0.20. | P67: SINAPI | Q67: 95818 | R67: CONDULETE DE PVC, TIPO X, PARA ELETRODUTO DE PVC SOLDÁVEL DN 32 MM (1''), APARENTE - FORNECIMENTO E INSTALAÇÃO. AF_11/2016 | S67: UN | T67: 15
A68: S | B68: 2 | C68: S | D68: 0 | E68: 1 | F68: 4 | G68: 0 | H68: 0 | I68: 0 | J68: 0 | K68: 0 | L68: F | M68: Serviço | N68: Serviço | O68: 1.4.0.0.21. | P68: SINAPI | Q68: 91902 | R68: CURVA 90 GRAUS PARA ELETRODUTO, PVC, ROSCÁVEL, DN 25 MM (3/4"), PARA CIRCUITOS TERMINAIS, INSTALADA EM LAJE - FORNECIMENTO E INSTALAÇÃO. AF_12/2015 | S68: UN | T68: 50 | X68: Referência: AGETOP - 71141
A69: S | B69: 2 | C69: S | D69: 0 | E69: 1 | F69: 4 | G69: 0 | H69: 0 | I69: 0 | J69: 0 | K69: 0 | L69: F | M69: Serviço | N69: Serviço | O69: 1.4.0.0.22. | P69: SINAPI | Q69: 91905 | R69: CURVA 90 GRAUS PARA ELETRODUTO, PVC, ROSCÁVEL, DN 32 MM (1"), PARA CIRCUITOS TERMINAIS, INSTALADA EM LAJE - FORNECIMENTO E INSTALAÇÃO. AF_12/2015 | S69: UN | T69: 30 | X69: Referência: AGETOP - 71142
A70: S | B70: =IF(OR(C70="s",C70=0),OFFSET(B70,-1,0),C70) -> 2 | C70: =IF(OFFSET(C70,-1,0)="L",1,IF(OFFSET(C70,-1,0)=1,2,IF(OR(A70="s",A70=0),"S",IF(AND(OFFSET(C70,-1,0)=2,A70=4),3,IF(AND(OR(OFFSET(C70,-1,0)="s",OFFSET(C70,-1,0)=0),A70<>"s",A70>OFFSET(B70,-1,0)),OFFSET(B70,-1,0),A70))))) -> S | D70: =IF(OR(C70="S",C70=0),0,IF(ISERROR(K70),J70,SMALL(J70:K70,1))) -> 0 | E70: 1 | F70: 4 | G70: 0 | H70: 0 | I70: 0 | J70: 0 | K70: 0 | L70: F | M70: Serviço | N70: Serviço | O70: 1.4.0.0.23. | P70: SINAPI | Q70: 93020 | R70: CURVA 90 GRAUS PARA ELETRODUTO, PVC, ROSCÁVEL, DN 60 MM (2") - FORNECIMENTO E INSTALAÇÃO. AF_12/2015 | S70: UN | T70: 7
A71: S | B71: 2 | C71: S | D71: 0 | E71: 1 | F71: 4 | G71: 0 | H71: 0 | I71: 0 | J71: 0 | K71: 0 | L71: F | M71: Serviço | N71: Serviço | O71: 1.4.0.0.24. | P71: SINAPI | Q71: 93653 | R71: DISJUNTOR MONOPOLAR TIPO DIN, CORRENTE NOMINAL DE 10A - FORNECIMENTO E INSTALAÇÃO. AF_04/2016 | S71: UN | T71: 8
A72: S | B72: 2 | C72: S | D72: 0 | E72: 1 | F72: 4 | G72: 0 | H72: 0 | I72: 0 | J72: 0 | K72: 0 | L72: F | M72: Serviço | N72: Serviço | O72: 1.4.0.0.25. | P72: SINAPI | Q72: 93654 | R72: DISJUNTOR MONOPOLAR TIPO DIN, CORRENTE NOMINAL DE 16A - FORNECIMENTO E INSTALAÇÃO. AF_04/2016 | S72: UN | T72: 5
A73: S | B73: 2 | C73: S | D73: 0 | E73: 1 | F73: 4 | G73: 0 | H73: 0 | I73: 0 | J73: 0 | K73: 0 | L73: F | M73: Serviço | N73: Serviço | O73: 1.4.0.0.26. | P73: SINAPI | Q73: 93656 | R73: DISJUNTOR MONOPOLAR TIPO DIN, CORRENTE NOMINAL DE 25A - FORNECIMENTO E INSTALAÇÃO. AF_04/2016 | S73: UN | T73: 10
A74: S | B74: 2 | C74: S | D74: 0 | E74: 1 | F74: 4 | G74: 0 | H74: 0 | I74: 0 | J74: 0 | K74: 0 | L74: F | M74: Serviço | N74: Serviço | O74: 1.4.0.0.27. | P74: SINAPI | Q74: 93658 | R74: DISJUNTOR MONOPOLAR TIPO DIN, CORRENTE NOMINAL DE 40A - FORNECIMENTO E INSTALAÇÃO. AF_04/2016 | S74: UN | T74: 2
A75: S | B75: 2 | C75: S | D75: 0 | E75: 1 | F75: 4 | G75: 0 | H75: 0 | I75: 0 | J75: 0 | K75: 0 | L75: F | M75: Serviço | N75: Serviço | O75: 1.4.0.0.28. | P75: SINAPI | Q75: 93671 | R75: DISJUNTOR TRIPOLAR TIPO DIN, CORRENTE NOMINAL DE 32A - FORNECIMENTO E INSTALAÇÃO. AF_04/2016 | S75: UN | T75: 5 | X75: Referência: AGETOP - 71173
A76: S | B76: 2 | C76: S | D76: 0 | E76: 1 | F76: 4 | G76: 0 | H76: 0 | I76: 0 | J76: 0 | K76: 0 | L76: F | M76: Serviço | N76: Serviço | O76: 1.4.0.0.29. | P76: SINAPI | Q76: 93673 | R76: DISJUNTOR TRIPOLAR TIPO DIN, CORRENTE NOMINAL DE 50A - FORNECIMENTO E INSTALAÇÃO. AF_04/2016 | S76: UN | T76: 2 | X76: Referência: AGETOP - 71174
A77: S | B77: 2 | C77: S | D77: 0 | E77: 1 | F77: 4 | G77: 0 | H77: 0 | I77: 0 | J77: 0 | K77: 0 | L77: F | M77: Serviço | N77: Serviço | O77: 1.4.0.0.30. | P77: SINAPI | Q77: 74130/5 | R77: DISJUNTOR TERMOMAGNETICO TRIPOLAR PADRAO NEMA (AMERICANO) 60 A 100A 240V, FORNECIMENTO E INSTALACAO | S77: UN | T77: 2
A78: S | B78: 2 | C78: S | D78: 0 | E78: 1 | F78: 4 | G78: 0 | H78: 0 | I78: 0 | J78: 0 | K78: 0 | L78: F | M78: Serviço | N78: Serviço | O78: 1.4.0.0.31. | P78: AGETOP | Q78: 71184 | R78: DISPOSITIVO DE PROTEÇÃO CONTRA SURTOS (D.P.S.) 275V DE 8 A 40KA | S78: Un | T78: 4
A79: S | B79: 2 | C79: S | D79: 0 | E79: 1 | F79: 4 | G79: 0 | H79: 0 | I79: 0 | J79: 0 | K79: 0 | L79: F | M79: Serviço | N79: Serviço | O79: 1.4.0.0.32. | P79: SINAPI | Q79: 91846 | R79: ELETRODUTO FLEXÍVEL CORRUGADO, PVC, DN 32 MM (1"), PARA CIRCUITOS TERMINAIS, INSTALADO EM LAJE - FORNECIMENTO E INSTALAÇÃO. AF_12/2015 | S79: M | T79: 35
A80: S | B80: 2 | C80: S | D80: 0 | E80: 1 | F80: 4 | G80: 0 | H80: 0 | I80: 0 | J80: 0 | K80: 0 | L80: F | M80: Serviço | N80: Serviço | O80: 1.4.0.0.33. | P80: SINAPI | Q80: 91871 | R80: ELETRODUTO RÍGIDO ROSCÁVEL, PVC, DN 25 MM (3/4"), PARA CIRCUITOS TERMINAIS, INSTALADO EM PAREDE - FORNECIMENTO E INSTALAÇÃO. AF_12/2015 | S80: M | T80: 700 | X80: Referência: AGETOP - 71201
A81: S | B81: 2 | C81: S | D81: 0 | E81: 1 | F81: 4 | G81: 0 | H81: 0 | I81: 0 | J81: 0 | K81: 0 | L81: F | M81: Serviço | N81: Serviço | O81: 1.4.0.0.34. | P81: SINAPI | Q81: 91872 | R81: ELETRODUTO RÍGIDO ROSCÁVEL, PVC, DN 32 MM (1"), PARA CIRCUITOS TERMINAIS, INSTALADO EM PAREDE - FORNECIMENTO E INSTALAÇÃO. AF_12/2015 | S81: M | T81: 200 | X81: Referência: AGETOP - 71202
A82: S | B82: 2 | C82: S | D82: 0 | E82: 1 | F82: 4 | G82: 0 | H82: 0 | I82: 0 | J82: 0 | K82: 0 | L82: F | M82: Serviço | N82: Serviço | O82: 1.4.0.0.35. | P82: SINAPI | Q82: 93009 | R82: ELETRODUTO RÍGIDO ROSCÁVEL, PVC, DN 60 MM (2") - FORNECIMENTO E INSTALAÇÃO. AF_12/2015 | S82: M | T82: 30
A83: S | B83: 2 | C83: S | D83: 0 | E83: 1 | F83: 4 | G83: 0 | H83: 0 | I83: 0 | J83: =IF(OR($C83="S",$C83=0),0,MATCH(0,OFFSET($D83,1,$C83,ROW($C$303)-ROW($C83)),0)) -> 0 | K83: =IF(OR($C83="S",$C83=0),0,MATCH(OFFSET($D83,0,$C83)+1,OFFSET($D83,1,$C83,ROW($C$303)-ROW($C83)),0)) -> 0 | L83: F | M83: Serviço | N83: Serviço | O83: 1.4.0.0.36. | P83: AGETOP | Q83: 71215 | R83: ELETRODUTO EM AÇO GALVANIZADO A FOGO DIÂMETRO 2" - PESADO | S83: M | T83: 7
A84: S | B84: 2 | C84: S | D84: 0 | E84: 1 | F84: 4 | G84: 0 | H84: 0 | I84: 0 | J84: 0 | K84: 0 | L84: F | M84: Serviço | N84: Serviço | O84: 1.4.0.0.37. | P84: AGETOP | Q84: 71321 | R84: FITA DE AUTO FUSAO, ROLO E 10,00 MM | S84: Un | T84: 1
A85: S | B85: 2 | C85: S | D85: 0 | E85: 1 | F85: 4 | G85: 0 | H85: 0 | I85: 0 | J85: 0 | K85: 0 | L85: F | M85: Serviço | N85: Serviço | O85: 1.4.0.0.38. | P85: AGETOP | Q85: 71331 | R85: FITA ISOLANTE, ROLO DE 20,00 M | S85: Un | T85: 3
A86: S | B86: 2 | C86: S | D86: 0 | E86: 1 | F86: 4 | G86: 0 | H86: 0 | I86: 0 | J86: 0 | K86: 0 | L86: F | M86: Serviço | N86: Serviço | O86: 1.4.0.0.39. | P86: AGETOP | Q86: 71381 | R86: HASTE REV.COBRE(COPPERWELD) 5/8" X 3,00 M C/CONECTOR | S86: Un | T86: 3
A87: S | B87: 2 | C87: S | D87: 0 | E87: 1 | F87: 4 | G87: 0 | H87: 0 | I87: 0 | J87: 0 | K87: 0 | L87: F | M87: Serviço | N87: Serviço | O87: 1.4.0.0.40. | P87: SINAPI | Q87: 91953 | R87: INTERRUPTOR SIMPLES (1 MÓDULO), 10A/250V, INCLUINDO SUPORTE E PLACA - FORNECIMENTO E INSTALAÇÃO. AF_12/2015 | S87: UN | T87: 23 | X87: Referência: AGETOP - 71440
A88: S | B88: 2 | C88: S | D88: 0 | E88: 1 | F88: 4 | G88: 0 | H88: 0 | I88: 0 | J88: 0 | K88: 0 | L88: F | M88: Serviço | N88: Serviço | O88: 1.4.0.0.41. | P88: COMPOSIÇÃO | Q88: COMP 387_SEE | R88: LÂMPADA LED TUBULAR 18W | S88: UN | T88: 150
A89: S | B89: 2 | C89: S | D89: 0 | E89: 1 | F89: 4 | G89: 0 | H89: 0 | I89: 0 | J89: 0 | K89: 0 | L89: F | M89: Serviço | N89: Serviço | O89: 1.4.0.0.42. | P89: SINAPI | Q89: 93043 | R89: LÂMPADA LED 10 W BIVOLT BRANCA, FORMATO TRADICIONAL (BASE E27) - FORNECIMENTO E INSTALAÇÃO | S89: UN | T89: 3
A90: S | B90: 2 | C90: S | D90: 0 | E90: 1 | F90: 4 | G90: 0 | H90: 0 | I90: 0 | J90: 0 | K90: 0 | L90: F | M90: Serviço | N90: Serviço | O90: 1.4.0.0.43. | P90: SINAPI | Q90: 97585 | R90: LUMINÁRIA TIPO CALHA, DE SOBREPOR, COM 2 LÂMPADAS TUBULARES DE 18 W - FORNECIMENTO E INSTALAÇÃO. AF_11/2017 | S90: UN | T90: 75
A91: S | B91: 2 | C91: S | D91: 0 | E91: 1 | F91: 4 | G91: 0 | H91: 0 | I91: 0 | J91: 0 | K91: 0 | L91: F | M91: Serviço | N91: Serviço | O91: 1.4.0.0.44. | P91: SINAPI | Q91: 97593 | R91: LUMINÁRIA TIPO SPOT, DE SOBREPOR, COM 1 LÂMPADA DE 15 W - FORNECIMENTO E INSTALAÇÃO. AF_11/2017 | S91: UN | T91: 3 | X91: Referência: AGETOP - 71688
A92: S | B92: 2 | C92: S | D92: 0 | E92: 1 | F92: 4 | G92: 0 | H92: 0 | I92: 0 | J92: 0 | K92: 0 | L92: F | M92: Serviço | N92: Serviço | O92: 1.4.0.0.45. | P92: SINAPI | Q92: 95757 | R92: LUVA DE EMENDA PARA ELETRODUTO, AÇO GALVANIZADO, DN 20 MM (3/4''), APARENTE, INSTALADA EM PAREDE - FORNECIMENTO E INSTALAÇÃO. AF_11/2016_P | S92: UN | T92: 350 | X92: Referência: AGETOP - 71701
A93: S | B93: 2 | C93: S | D93: 0 | E93: 1 | F93: 4 | G93: 0 | H93: 0 | I93: 0 | J93: 0 | K93: 0 | L93: F | M93: Serviço | N93: Serviço | O93: 1.4.0.0.46. | P93: SINAPI | Q93: 95758 | R93: LUVA DE EMENDA PARA ELETRODUTO, AÇO GALVANIZADO, DN 25 MM (1''), APARENTE, INSTALADA EM PAREDE - FORNECIMENTO E INSTALAÇÃO. AF_11/2016_P | S93: UN | T93: 100 | X93: Referência: AGETOP - 71702
A94: S | B94: 2 | C94: S | D94: 0 | E94: 1 | F94: 4 | G94: 0 | H94: 0 | I94: 0 | J94: 0 | K94: 0 | L94: F | M94: Serviço | N94: Serviço | O94: 1.4.0.0.47. | P94: SINAPI | Q94: 91884 | R94: LUVA PARA ELETRODUTO, PVC, ROSCÁVEL, DN 25 MM (3/4"), PARA CIRCUITOS TERMINAIS, INSTALADA EM PAREDE - FORNECIMENTO E INSTALAÇÃO. AF_12/2015 | S94: UN | T94: 200 | X94: Referência: AGETOP - 71741
A95: S | B95: 2 | C95: S | D95: 0 | E95: 1 | F95: 4 | G95: 0 | H95: 0 | I95: 0 | J95: 0 | K95: 0 | L95: F | M95: Serviço | N95: Serviço | O95: 1.4.0.0.48. | P95: AGETOP | Q95: 71705 | R95: LUVA EM AÇO GALVANIZADO DIÂMETRO 2" | S95: Un | T95: 3
A96: S | B96: 2 | C96: S | D96: 0 | E96: 1 | F96: 4 | G96: 0 | H96: 0 | I96: 0 | J96: 0 | K96: 0 | L96: F | M96: Serviço | N96: Serviço | O96: 1.4.0.0.49. | P96: SINAPI | Q96: 91885 | R96: LUVA PARA ELETRODUTO, PVC, ROSCÁVEL, DN 32 MM (1"), PARA CIRCUITOS TERMINAIS, INSTALADA EM PAREDE - FORNECIMENTO E INSTALAÇÃO. AF_12/2015 | S96: UN | T96: 100 | X96: Referência: AGETOP - 71742
A97: S | B97: 2 | C97: S | D97: 0 | E97: 1 | F97: 4 | G97: 0 | H97: 0 | I97: 0 | J97: 0 | K97: 0 | L97: F | M97: Serviço | N97: Serviço | O97: 1.4.0.0.50. | P97: SINAPI | Q97: 93014 | R97: LUVA PARA ELETRODUTO, PVC, ROSCÁVEL, DN 60 MM (2") - FORNECIMENTO E INSTALAÇÃO. AF_12/2015 | S97: UN | T97: 40 | X97: Referência: AGETOP - 71745
A98: S | B98: 2 | C98: S | D98: 0 | E98: 1 | F98: 4 | G98: 0 | H98: 0 | I98: 0 | J98: 0 | K98: 0 | L98: F | M98: Serviço | N98: Serviço | O98: 1.4.0.0.51. | P98: AGETOP | Q98: 71826 | R98: PADRÃO TRIFASICO 25 MM H=7 METROS | S98: Un | T98: 1
A99: S | B99: 2 | C99: S | D99: 0 | E99: 1 | F99: 4 | G99: 0 | H99: 0 | I99: 0 | J99: 0 | K99: 0 | L99: F | M99: Serviço | N99: Serviço | O99: 1.4.0.0.52. | P99: SINAPI | Q99: 84402 | R99: QUADRO DE DISTRIBUICAO DE ENERGIA P/ 6 DISJUNTORES TERMOMAGNETICOS MONOPOLARES SEM BARRAMENTO, DE EMBUTIR, EM CHAPA METALICA - FORNECIMENTO E INSTALACAO | S99: UN | T99: 1
A100: S | B100: 2 | C100: S | D100: 0 | E100: 1 | F100: 4 | G100: 0 | H100: 0 | I100: 0 | J100: 0 | K100: 0 | L100: F | M100: Serviço | N100: Serviço | O100: 1.4.0.0.53. | P100: AGETOP | Q100: 72170 | R100: QUADRO DE DISTRIBUIÇÃO DE EMBUTIR EM PVC CB 12E - 80A | S100: Un | T100: 1
A101: S | B101: 2 | C101: S | D101: 0 | E101: 1 | F101: 4 | G101: 0 | H101: 0 | I101: 0 | J101: 0 | K101: 0 | L101: F | M101: Serviço | N101: Serviço | O101: 1.4.0.0.54. | P101: SINAPI | Q101: 74131/5 | R101: QUADRO DE DISTRIBUICAO DE ENERGIA DE EMBUTIR, EM CHAPA METALICA, PARA 24 DISJUNTORES TERMOMAGNETICOS MONOPOLARES, COM BARRAMENTO TRIFASICO E NEUTRO, FORNECIMENTO E INSTALACAO | S101: UN | T101: 2
A102: S | B102: 2 | C102: S | D102: 0 | E102: 1 | F102: 4 | G102: 0 | H102: 0 | I102: 0 | J102: 0 | K102: 0 | L102: F | M102: Serviço | N102: Serviço | O102: 1.4.0.0.55. | P102: AGETOP | Q102: 72385 | R102: TAMPA CEGA PARA CONDULETE DE PVC | S102: Un | T102: 85
A103: S | B103: 2 | C103: S | D103: 0 | E103: 1 | F103: 4 | G103: 0 | H103: 0 | I103: 0 | J103: 0 | K103: 0 | L103: F | M103: Serviço | N103: Serviço | O103: 1.4.0.0.56. | P103: AGETOP | Q103: 72400 | R103: TAMPA CEGA PLASTICA QUADRADA 4"X4" | S103: Un | T103: 5
A104: S | B104: 2 | C104: S | D104: 0 | E104: 1 | F104: 4 | G104: 0 | H104: 0 | I104: 0 | J104: 0 | K104: 0 | L104: F | M104: Serviço | N104: Serviço | O104: 1.4.0.0.57. | P104: SINAPI | Q104: 92000 | R104: TOMADA BAIXA DE EMBUTIR (1 MÓDULO), 2P+T 10 A, INCLUINDO SUPORTE E PLACA - FORNECIMENTO E INSTALAÇÃO. AF_12/2015 | S104: UN | T104: 38 | X104: Referência: AGETOP - 72578
A105: S | B105: 2 | C105: S | D105: 0 | E105: 1 | F105: 4 | G105: 0 | H105: 0 | I105: 0 | J105: 0 | K105: 0 | L105: F | M105: Serviço | N105: Serviço | O105: 1.4.0.0.58. | P105: SINAPI | Q105: 91993 | R105: TOMADA ALTA DE EMBUTIR (1 MÓDULO), 2P+T 20 A, INCLUINDO SUPORTE E PLACA - FORNECIMENTO E INSTALAÇÃO. AF_12/2015 | S105: UN | T105: 10 | X105: Referência: AGETOP - 72585
A106: S | B106: 2 | C106: S | D106: 0 | E106: 1 | F106: 4 | G106: 0 | H106: 0 | I106: 0 | J106: 0 | K106: 0 | L106: F | M106: Serviço | N106: Serviço | O106: 1.4.0.0.59. | P106: SINAPI | Q106: 98111 | R106: CAIXA DE INSPEÇÃO PARA ATERRAMENTO, CIRCULAR, EM POLIETILENO, DIÂMETRO INTERNO = 0,3 M. AF_05/2018 | S106: UN | T106: 1
A107: =CHOOSE(1+LOG(1+2*(ORÇAMENTO.Nivel="Nível 1")+4*(ORÇAMENTO.Nivel="Nível 2")+8*(ORÇAMENTO.Nivel="Nível 3")+16*(ORÇAMENTO.Nivel="Nível 4")+32*(ORÇAMENTO.Nivel="Serviço"),2),0,1,2,3,4,"S") -> 2 | B107: =IF(OR(C107="s",C107=0),OFFSET(B107,-1,0),C107) -> 2 | C107: =IF(OFFSET(C107,-1,0)="L",1,IF(OFFSET(C107,-1,0)=1,2,IF(OR(A107="s",A107=0),"S",IF(AND(OFFSET(C107,-1,0)=2,A107=4),3,IF(AND(OR(OFFSET(C107,-1,0)="s",OFFSET(C107,-1,0)=0),A107<>"s",A107>OFFSET(B107,-1,0)),OFFSET(B107,-1,0),A107))))) -> 2 | D107: =IF(OR(C107="S",C107=0),0,IF(ISERROR(K107),J107,SMALL(J107:K107,1))) -> 19 | E107: =IF($C107=1,OFFSET(E107,-1,0)+1,OFFSET(E107,-1,0)) -> 1 | F107: =IF($C107=1,0,IF($C107=2,OFFSET(F107,-1,0)+1,OFFSET(F107,-1,0))) -> 5 | G107: =IF(AND($C107<=2,$C107<>0),0,IF($C107=3,OFFSET(G107,-1,0)+1,OFFSET(G107,-1,0))) -> 0 | H107: =IF(AND($C107<=3,$C107<>0),0,IF($C107=4,OFFSET(H107,-1,0)+1,OFFSET(H107,-1,0))) -> 0 | I107: =IF(AND($C107<=4,$C107<>0),0,IF(AND($C107="S",$W107>0),OFFSET(I107,-1,0)+1,OFFSET(I107,-1,0))) -> 0 | J107: 101 | K107: 19 | L107: F | M107: Nível 2 | N107: Nível 2 | O107: 1.5. | P107: AGETOP | R107: INSTALAÇÕES HIDROSSANITÁRIAS | S107: -
A108: 3 | B108: 3 | C108: 3 | D108: 11 | E108: 1 | F108: 5 | G108: 1 | H108: 0 | I108: 0 | J108: 18 | K108: 11 | L108: F | M108: Nível 3 | N108: Nível 3 | O108: 1.5.1. | P108: SINAPI | R108: PEÇAS E ACESSÓRIOS | S108: -
A109: 4 | B109: 4 | C109: 4 | D109: 5 | E109: 1 | F109: 5 | G109: 1 | H109: 1 | I109: 0 | J109: 10 | K109: 5 | L109: F | M109: Nível 4 | N109: Nível 4 | O109: 1.5.1.1. | P109: SINAPI | R109: VASO SANITÁRIO / ACESSÓRIOS | S109: -
A110: S | B110: 4 | C110: S | D110: 0 | E110: 1 | F110: 5 | G110: 1 | H110: 1 | I110: 0 | J110: 0 | K110: 0 | L110: F | M110: Serviço | N110: Serviço | O110: 1.5.1.1.1. | P110: SINAPI | Q110: 95470 | R110: VASO SANITARIO SIFONADO CONVENCIONAL COM LOUÇA BRANCA, INCLUSO CONJUNTO DE LIGAÇÃO PARA BACIA SANITÁRIA AJUSTÁVEL - FORNECIMENTO E INSTALAÇÃO. AF_10/2016 | S110: UN | T110: 1
A111: S | B111: 4 | C111: S | D111: 0 | E111: 1 | F111: 5 | G111: 1 | H111: 1 | I111: 0 | J111: 0 | K111: 0 | L111: F | M111: Serviço | N111: Serviço | O111: 1.5.1.1.2. | P111: AGETOP | Q111: 80511 | R111: CAIXA DE DESCARGA EXTERNA | S111: Un | T111: 1
A112: S | B112: 4 | C112: S | D112: 0 | E112: 1 | F112: 5 | G112: 1 | H112: 1 | I112: 0 | J112: 0 | K112: 0 | L112: F | M112: Serviço | N112: Serviço | O112: 1.5.1.1.3. | P112: AGETOP | Q112: 80520 | R112: CONJUNTO DE FIXACAO P/VASO SANITARIO (PAR) | S112: CJ | T112: 1
A113: S | B113: 4 | C113: S | D113: 0 | E113: 1 | F113: 5 | G113: 1 | H113: 1 | I113: 0 | J113: 0 | K113: 0 | L113: F | M113: Serviço | N113: Serviço | O113: 1.5.1.1.4. | P113: AGETOP | Q113: 80526 | R113: ASSENTO EM POLIPROPILENO COM SISTEMA DE FECHAMENTO SUAVE PARA VASO SANITÁRIO | S113: Un | T113: 1
A114: 4 | B114: 4 | C114: 4 | D114: 5 | E114: 1 | F114: 5 | G114: 1 | H114: 2 | I114: 0 | J114: 5 | L114: F | M114: Nível 4 | N114: Nível 4 | O114: 1.5.1.2. | P114: SINAPI | R114: LAVATÓRIO / ACESSÓRIOS | S114: -
A115: S | B115: 4 | C115: S | D115: 0 | E115: 1 | F115: 5 | G115: 1 | H115: 2 | I115: 0 | J115: 0 | K115: 0 | L115: F | M115: Serviço | N115: Serviço | O115: 1.5.1.2.1. | P115: AGETOP | Q115: 80556 | R115: LIGAÇÃO FLEXÍVEL PVC DIAM.1/2" (ENGATE) | S115: Un | T115: 1
A116: S | B116: 4 | C116: S | D116: 0 | E116: 1 | F116: 5 | G116: 1 | H116: 2 | I116: 0 | J116: 0 | K116: 0 | L116: F | M116: Serviço | N116: Serviço | O116: 1.5.1.2.2. | P116: SINAPI | Q116: 86883 | R116: SIFÃO DO TIPO FLEXÍVEL EM PVC 1 X 1.1/2 - FORNECIMENTO E INSTALAÇÃO. AF_12/2013 | S116: UN | T116: 1
A117: S | B117: 4 | C117: S | D117: 0 | E117: 1 | F117: 5 | G117: 1 | H117: 2 | I117: 0 | J117: 0 | K117: 0 | L117: F | M117: Serviço | N117: Serviço | O117: 1.5.1.2.3. | P117: SINAPI | Q117: 86915 | R117: TORNEIRA CROMADA DE MESA, 1/2" OU 3/4", PARA LAVATÓRIO, PADRÃO MÉDIO - FORNECIMENTO E INSTALAÇÃO. AF_12/2013 | S117: UN | T117: 1 | X117: Referência: AGETOP - 80570
A118: S | B118: 4 | C118: S | D118: 0 | E118: 1 | F118: 5 | G118: 1 | H118: 2 | I118: 0 | J118: 0 | K118: 0 | L118: F | M118: Serviço | N118: Serviço | O118: 1.5.1.2.4. | P118: SINAPI | Q118: 86901 | R118: CUBA DE EMBUTIR OVAL EM LOUÇA BRANCA, 35 X 50CM OU EQUIVALENTE - FORNECIMENTO E INSTALAÇÃO. AF_12/2013 | S118: UN | T118: 1 | X118: Referência: AGETOP - 80587
A119: =CHOOSE(1+LOG(1+2*(ORÇAMENTO.Nivel="Nível 1")+4*(ORÇAMENTO.Nivel="Nível 2")+8*(ORÇAMENTO.Nivel="Nível 3")+16*(ORÇAMENTO.Nivel="Nível 4")+32*(ORÇAMENTO.Nivel="Serviço"),2),0,1,2,3,4,"S") -> 3 | B119: =IF(OR(C119="s",C119=0),OFFSET(B119,-1,0),C119) -> 3 | C119: =IF(OFFSET(C119,-1,0)="L",1,IF(OFFSET(C119,-1,0)=1,2,IF(OR(A119="s",A119=0),"S",IF(AND(OFFSET(C119,-1,0)=2,A119=4),3,IF(AND(OR(OFFSET(C119,-1,0)="s",OFFSET(C119,-1,0)=0),A119<>"s",A119>OFFSET(B119,-1,0)),OFFSET(B119,-1,0),A119))))) -> 3 | D119: =IF(OR(C119="S",C119=0),0,IF(ISERROR(K119),J119,SMALL(J119:K119,1))) -> 7 | E119: =IF($C119=1,OFFSET(E119,-1,0)+1,OFFSET(E119,-1,0)) -> 1 | F119: =IF($C119=1,0,IF($C119=2,OFFSET(F119,-1,0)+1,OFFSET(F119,-1,0))) -> 5 | G119: =IF(AND($C119<=2,$C119<>0),0,IF($C119=3,OFFSET(G119,-1,0)+1,OFFSET(G119,-1,0))) -> 2 | H119: =IF(AND($C119<=3,$C119<>0),0,IF($C119=4,OFFSET(H119,-1,0)+1,OFFSET(H119,-1,0))) -> 0 | I119: =IF(AND($C119<=4,$C119<>0),0,IF(AND($C119="S",$W119>0),OFFSET(I119,-1,0)+1,OFFSET(I119,-1,0))) -> 0 | J119: 7 | K119: 52 | L119: F | M119: Nível 3 | N119: Nível 3 | O119: 1.5.2. | P119: SINAPI | R119: INCÊNDIO | S119: -
A120: S | B120: 3 | C120: S | D120: 0 | E120: 1 | F120: 5 | G120: 2 | H120: 0 | I120: 0 | J120: 0 | K120: 0 | L120: F | M120: Serviço | N120: Serviço | O120: 1.5.2.0.1. | P120: AGETOP | Q120: 85003 | R120: EXTINTOR PO QUIMICO SECO (6 KG) - CAPACIDADE EXTINTORA 20 BC | S120: Un | T120: 1
A121: S | B121: 3 | C121: S | D121: 0 | E121: 1 | F121: 5 | G121: 2 | H121: 0 | I121: 0 | J121: 0 | K121: 0 | L121: F | M121: Serviço | N121: Serviço | O121: 1.5.2.0.2. | P121: AGETOP | Q121: 85006 | R121: EXTINTOR MULTI USO EM PO A B C (6 KG) - CAPACIDADE EXTINTORA 3A 20BC | S121: un | T121: 5
A122: S | B122: 3 | C122: S | D122: 0 | E122: 1 | F122: 5 | G122: 2 | H122: 0 | I122: 0 | J122: 0 | K122: 0 | L122: F | M122: Serviço | N122: Serviço | O122: 1.5.2.0.3. | P122: COMPOSIÇÃO | Q122: COMP 024_SEE | R122: SINALIZADOR FOTOLUMINESCENTE PARA EXTINTOR | S122: UN | T122: 6
A123: S | B123: 3 | C123: S | D123: 0 | E123: 1 | F123: 5 | G123: 2 | H123: 0 | I123: 0 | J123: 0 | K123: 0 | L123: F | M123: Serviço | N123: Serviço | O123: 1.5.2.0.4. | P123: SINAPI | Q123: 97599 | R123: LUMINÁRIA DE EMERGÊNCIA - FORNECIMENTO E INSTALAÇÃO. AF_11/2017 | S123: UN | T123: 10
A124: S | B124: 3 | C124: S | D124: 0 | E124: 1 | F124: 5 | G124: 2 | H124: 0 | I124: 0 | J124: 0 | K124: 0 | L124: F | M124: Serviço | N124: Serviço | O124: 1.5.2.0.5. | P124: COMPOSIÇÃO | Q124: COMP 025_SEE | R124: SINALIZADOR FOTOLUMINESCENTE DE EMERGÊNCIA | S124: UN | T124: 25
A125: S | B125: 3 | C125: S | D125: 0 | E125: 1 | F125: 5 | G125: 2 | H125: 0 | I125: 0 | J125: 0 | K125: 0 | L125: F | M125: Serviço | N125: Serviço | O125: 1.5.2.0.6. | P125: COMPOSIÇÃO | Q125: COMP 277_SEE | R125: MARCAÇÃO NO PISO - 1X1 M PARA EXTINTOR | S125: M2 | T125: 6
A126: 2 | B126: 2 | C126: 2 | D126: 26 | E126: 1 | F126: 6 | G126: 0 | H126: 0 | I126: 0 | J126: 82 | K126: 26 | L126: F | M126: Nível 2 | N126: Nível 2 | O126: 1.6. | R126: INSTALAÇÕES ESPECIAIS | S126: -
A127: S | B127: 2 | C127: S | D127: 0 | E127: 1 | F127: 6 | G127: 0 | H127: 0 | I127: 0 | J127: 0 | K127: 0 | L127: F | M127: Serviço | N127: Serviço | O127: 1.6.0.0.1. | P127: AGETOP | Q127: 91007 | R127: CENTRAL DE GÁS PADRÃO AGETOP SEM INSTALAÇÕES (1+1 CILINDRO 45 KG) | S127: Un | T127: 1
A128: S | B128: 2 | C128: S | D128: 0 | E128: 1 | F128: 6 | G128: 0 | H128: 0 | I128: 0 | J128: 0 | K128: 0 | L128: F | M128: Serviço | N128: Serviço | O128: 1.6.0.0.2. | P128: AGETOP | Q128: 91023 | R128: UNIÃO S/BRONZE PRETA 3/4" NPT 300 LBS | S128: Un | T128: 3
A129: S | B129: 2 | C129: S | D129: 0 | E129: 1 | F129: 6 | G129: 0 | H129: 0 | I129: 0 | J129: 0 | K129: 0 | L129: F | M129: Serviço | N129: Serviço | O129: 1.6.0.0.3. | P129: COMPOSIÇÃO | Q129: COMP 382_SEE | R129: TE DE REDUCAO DE FERRO GALVANIZADO, COM ROSCA BSP, DE 3/4" X 1/2" | S129: UN | T129: 1
A130: S | B130: 2 | C130: S | D130: 0 | E130: 1 | F130: 6 | G130: 0 | H130: 0 | I130: 0 | J130: 0 | K130: 0 | L130: F | M130: Serviço | N130: Serviço | O130: 1.6.0.0.4. | P130: COMPOSIÇÃO | Q130: COMP 383_SEE | R130: BUCHA DE REDUCAO DE FERRO GALVANIZADO, COM ROSCA BSP, DE 1/2" X 1/4" | S130: UN | T130: 3
A131: S | B131: 2 | C131: S | D131: 0 | E131: 1 | F131: 6 | G131: 0 | H131: 0 | I131: 0 | J131: 0 | K131: 0 | L131: F | M131: Serviço | N131: Serviço | O131: 1.6.0.0.5. | P131: AGETOP | Q131: 91021 | R131: LUVA GALVANIZADO DE REDUÇÃO 3/4" X 1/2" (GÁS) | S131: Un | T131: 2
A132: S | B132: 2 | C132: S | D132: 0 | E132: 1 | F132: 6 | G132: 0 | H132: 0 | I132: 0 | J132: 0 | K132: 0 | L132: F | M132: Serviço | N132: Serviço | O132: 1.6.0.0.6. | P132: SINAPI | Q132: 92692 | R132: NIPLE, EM FERRO GALVANIZADO, CONEXÃO ROSQUEADA, DN 15 (1/2"), INSTALADO EM RAMAIS E SUB-RAMAIS DE GÁS - FORNECIMENTO E INSTALAÇÃO. AF_12/2015 | S132: UN | T132: 6
A133: S | B133: 2 | C133: S | D133: 0 | E133: 1 | F133: 6 | G133: 0 | H133: 0 | I133: 0 | J133: 0 | K133: 0 | L133: F | M133: Serviço | N133: Serviço | O133: 1.6.0.0.7. | P133: AGETOP | Q133: 91031 | R133: NIPLE DUPLO 300 PSI 3/4" | S133: Un | T133: 6
A134: S | B134: 2 | C134: S | D134: 0 | E134: 1 | F134: 6 | G134: 0 | H134: 0 | I134: 0 | J134: 0 | K134: 0 | L134: F | M134: Serviço | N134: Serviço | O134: 1.6.0.0.8. | P134: COMPOSIÇÃO | Q134: COMP 212_SEE | R134: NIPLE DE REDUÇÃO 1/2" X 1/4" BSP | S134: UN | T134: 4
A135: S | B135: 2 | C135: S | D135: 0 | E135: 1 | F135: 6 | G135: 0 | H135: 0 | I135: 0 | J135: 0 | K135: 0 | L135: F | M135: Serviço | N135: Serviço | O135: 1.6.0.0.9. | P135: COMPOSIÇÃO | Q135: COMP 213_SEE | R135: NIPLE DE REDUÇÃO 3/4" X 1/2" BSP | S135: UN | T135: 4
A136: S | B136: 2 | C136: S | D136: 0 | E136: 1 | F136: 6 | G136: 0 | H136: 0 | I136: 0 | J136: 0 | K136: 0 | L136: F | M136: Serviço | N136: Serviço | O136: 1.6.0.0.10. | P136: SINAPI | Q136: 92688 | R136: TUBO DE AÇO GALVANIZADO COM COSTURA, CLASSE MÉDIA, CONEXÃO ROSQUEADA, DN 20 (3/4"), INSTALADO EM RAMAIS E SUB-RAMAIS DE GÁS - FORNECIMENTO E INSTALAÇÃO. AF_12/2015 | S136: M | T136: 12
A137: S | B137: 2 | C137: S | D137: 0 | E137: 1 | F137: 6 | G137: 0 | H137: 0 | I137: 0 | J137: 0 | K137: 0 | L137: F | M137: Serviço | N137: Serviço | O137: 1.6.0.0.11. | P137: SINAPI | Q137: 92701 | R137: JOELHO 90 GRAUS, EM FERRO GALVANIZADO, CONEXÃO ROSQUEADA, DN 20 (3/4"), INSTALADO EM RAMAIS E SUB-RAMAIS DE GÁS - FORNECIMENTO E INSTALAÇÃO. AF_12/2015 | S137: UN | T137: 7
A138: S | B138: 2 | C138: S | D138: 0 | E138: 1 | F138: 6 | G138: 0 | H138: 0 | I138: 0 | J138: 0 | K138: 0 | L138: F | M138: Serviço | N138: Serviço | O138: 1.6.0.0.12. | P138: COMPOSIÇÃO | Q138: COMP 237_SEE | R138: FITA ANTICORROSIVA | S138: M | T138: 5
A139: S | B139: 2 | C139: S | D139: 0 | E139: 1 | F139: 6 | G139: 0 | H139: 0 | I139: 0 | J139: 0 | K139: 0 | L139: F | M139: Serviço | N139: Serviço | O139: 1.6.0.0.13. | P139: AGETOP | Q139: 91025 | R139: VÁLVULA ESFERICA LATÃO 3/4" | S139: Un | T139: 3
A140: S | B140: 2 | C140: S | D140: 0 | E140: 1 | F140: 6 | G140: 0 | H140: 0 | I140: 0 | J140: 0 | K140: 0 | L140: F | M140: Serviço | N140: Serviço | O140: 1.6.0.0.14. | P140: COMPOSIÇÃO | Q140: COMP 542_SEE | R140: VÁLVULA UGV 3/4" (S) LATÃO | S140: UN | T140: 1
A141: S | B141: 2 | C141: S | D141: 0 | E141: 1 | F141: 6 | G141: 0 | H141: 0 | I141: 0 | J141: 0 | K141: 0 | L141: F | M141: Serviço | N141: Serviço | O141: 1.6.0.0.15. | P141: COMPOSIÇÃO | Q141: COMP 543_SEE | R141: VÁLVULA UGV 1/2" (S) LATÃO | S141: UN | T141: 1
A142: S | B142: 2 | C142: S | D142: 0 | E142: 1 | F142: 6 | G142: 0 | H142: 0 | I142: 0 | J142: 0 | K142: 0 | L142: F | M142: Serviço | N142: Serviço | O142: 1.6.0.0.16. | P142: AGETOP | Q142: 91029 | R142: VALVULA DE RETENÇÃO LATÃO 1/2" X 7/16" NPT | S142: Un | T142: 1
A143: S | B143: 2 | C143: S | D143: 0 | E143: 1 | F143: 6 | G143: 0 | H143: 0 | I143: 0 | J143: 0 | K143: 0 | L143: F | M143: Serviço | N143: Serviço | O143: 1.6.0.0.17. | P143: COMPOSIÇÃO | Q143: COMP 211_SEE | R143: REGULADOR DE 2º ESTÁGIO 5KG/H | S143: UN | T143: 1
A144: S | B144: 2 | C144: S | D144: 0 | E144: 1 | F144: 6 | G144: 0 | H144: 0 | I144: 0 | J144: 0 | K144: 0 | L144: F | M144: Serviço | N144: Serviço | O144: 1.6.0.0.18. | P144: COMPOSIÇÃO | Q144: COMP 210_SEE | R144: REGULADOR DE 1º ESTÁGIO 60KG/H MODELO AP-40 COM MANÔMETRO | S144: UN | T144: 1
A145: S | B145: 2 | C145: S | D145: 0 | E145: 1 | F145: 6 | G145: 0 | H145: 0 | I145: 0 | J145: 0 | K145: 0 | L145: F | M145: Serviço | N145: Serviço | O145: 1.6.0.0.19. | P145: AGETOP | Q145: 85003 | R145: EXTINTOR PO QUIMICO SECO (6 KG) - CAPACIDADE EXTINTORA 20 BC | S145: Un | T145: 1
A146: S | B146: 2 | C146: S | D146: 0 | E146: 1 | F146: 6 | G146: 0 | H146: 0 | I146: 0 | J146: 0 | K146: 0 | L146: F | M146: Serviço | N146: Serviço | O146: 1.6.0.0.20. | P146: COMPOSIÇÃO | Q146: COMP 235_SEE | R146: PLACA DE SINALIZAÇÃO EM PVC COD 01 - (300X300) PROIBIDO FUMAR | S146: UN | T146: 2
A147: S | B147: 2 | C147: S | D147: 0 | E147: 1 | F147: 6 | G147: 0 | H147: 0 | I147: 0 | J147: =IF(OR($C147="S",$C147=0),0,MATCH(0,OFFSET($D147,1,$C147,ROW($C$303)-ROW($C147)),0)) -> 0 | K147: =IF(OR($C147="S",$C147=0),0,MATCH(OFFSET($D147,0,$C147)+1,OFFSET($D147,1,$C147,ROW($C$303)-ROW($C147)),0)) -> 0 | L147: F | M147: Serviço | N147: Serviço | O147: 1.6.0.0.21. | P147: COMPOSIÇÃO | Q147: COMP 236_SEE | R147: PLACA DE SINALIZAÇÃO EM PVC COD 06 - (300X300) PERIGO INFLAMÁVEL | S147: UN | T147: 2
A148: S | B148: 2 | C148: S | D148: 0 | E148: 1 | F148: 6 | G148: 0 | H148: 0 | I148: 0 | J148: 0 | K148: 0 | L148: F | M148: Serviço | N148: Serviço | O148: 1.6.0.0.22. | P148: AGETOP | Q148: 91043 | R148: BRAÇADEIRA METALICA TIPO "D" DIAM. 3/4" | S148: Un | T148: 5
A149: S | B149: 2 | C149: S | D149: 0 | E149: 1 | F149: 6 | G149: 0 | H149: 0 | I149: 0 | J149: 0 | K149: 0 | L149: F | M149: Serviço | N149: Serviço | O149: 1.6.0.0.23. | P149: AGETOP | Q149: 71863 | R149: PARAFUSO P/BUCHA S-10 | S149: Un | T149: 10
A150: S | B150: 2 | C150: S | D150: 0 | E150: 1 | F150: 6 | G150: 0 | H150: 0 | I150: 0 | J150: 0 | K150: 0 | L150: F | M150: Serviço | N150: Serviço | O150: 1.6.0.0.24. | P150: AGETOP | Q150: 70393 | R150: BUCHA DE NYLON S-10 | S150: Un | T150: 10
A151: S | B151: 2 | C151: S | D151: 0 | E151: 1 | F151: 6 | G151: 0 | H151: 0 | I151: 0 | J151: 0 | K151: 0 | L151: F | M151: Serviço | N151: Serviço | O151: 1.6.0.0.25. | P151: AGETOP | Q151: 91045 | R151: SUPORTE PARA COLETOR | S151: Un | T151: 2
A152: =CHOOSE(1+LOG(1+2*(ORÇAMENTO.Nivel="Nível 1")+4*(ORÇAMENTO.Nivel="Nível 2")+8*(ORÇAMENTO.Nivel="Nível 3")+16*(ORÇAMENTO.Nivel="Nível 4")+32*(ORÇAMENTO.Nivel="Serviço"),2),0,1,2,3,4,"S") -> 2 | B152: =IF(OR(C152="s",C152=0),OFFSET(B152,-1,0),C152) -> 2 | C152: =IF(OFFSET(C152,-1,0)="L",1,IF(OFFSET(C152,-1,0)=1,2,IF(OR(A152="s",A152=0),"S",IF(AND(OFFSET(C152,-1,0)=2,A152=4),3,IF(AND(OR(OFFSET(C152,-1,0)="s",OFFSET(C152,-1,0)=0),A152<>"s",A152>OFFSET(B152,-1,0)),OFFSET(B152,-1,0),A152))))) -> 2 | D152: =IF(OR(C152="S",C152=0),0,IF(ISERROR(K152),J152,SMALL(J152:K152,1))) -> 6 | E152: =IF($C152=1,OFFSET(E152,-1,0)+1,OFFSET(E152,-1,0)) -> 1 | F152: =IF($C152=1,0,IF($C152=2,OFFSET(F152,-1,0)+1,OFFSET(F152,-1,0))) -> 7 | G152: =IF(AND($C152<=2,$C152<>0),0,IF($C152=3,OFFSET(G152,-1,0)+1,OFFSET(G152,-1,0))) -> 0 | H152: =IF(AND($C152<=3,$C152<>0),0,IF($C152=4,OFFSET(H152,-1,0)+1,OFFSET(H152,-1,0))) -> 0 | I152: =IF(AND($C152<=4,$C152<>0),0,IF(AND($C152="S",$W152>0),OFFSET(I152,-1,0)+1,OFFSET(I152,-1,0))) -> 0 | J152: 56 | K152: 6 | L152: F | M152: Nível 2 | N152: Nível 2 | O152: 1.7. | R152: COBERTURAS | S152: -
A153: 3 | B153: 3 | C153: 3 | D153: 5 | E153: 1 | F153: 7 | G153: 1 | H153: 0 | I153: 0 | J153: 5 | K153: 14 | L153: F | M153: Nível 3 | N153: Nível 3 | O153: 1.7.1. | R153: CERÂMICA | S153: -
A154: S | B154: 3 | C154: S | D154: 0 | E154: 1 | F154: 7 | G154: 1 | H154: 0 | I154: 0 | J154: 0 | K154: 0 | L154: F | M154: Serviço | N154: Serviço | O154: 1.7.1.0.1. | P154: SINAPI | Q154: 94445 | R154: TELHAMENTO COM TELHA CERÂMICA CAPA-CANAL, TIPO PLAN, COM ATÉ 2 ÁGUAS, INCLUSO TRANSPORTE VERTICAL. AF_06/2016 | S154: M2 | T154: 415.52 | X154: Referência: AGETOP - 160401
A155: S | B155: 3 | C155: S | D155: 0 | E155: 1 | F155: 7 | G155: 1 | H155: 0 | I155: 0 | J155: 0 | K155: 0 | L155: F | M155: Serviço | N155: Serviço | O155: 1.7.1.0.2. | P155: SINAPI | Q155: 94221 | R155: CUMEEIRA PARA TELHA CERÂMICA EMBOÇADA COM ARGAMASSA TRAÇO 1:2:9 (CIMENTO, CAL E AREIA) PARA TELHADOS COM ATÉ 2 ÁGUAS, INCLUSO TRANSPORTE VERTICAL. AF_06/2016 | S155: M | T155: 96.01
A156: S | B156: 3 | C156: S | D156: 0 | E156: 1 | F156: 7 | G156: 1 | H156: 0 | I156: 0 | J156: 0 | K156: 0 | L156: F | M156: Serviço | N156: Serviço | O156: 1.7.1.0.3. | P156: SINAPI | Q156: 94224 | R156: EMBOÇAMENTO COM ARGAMASSA TRAÇO 1:2:9 (CIMENTO, CAL E AREIA). AF_06/2016 | S156: M | T156: 220.55 | X156: Referência: AGETOP - 160403
A157: S | B157: 3 | C157: S | D157: 0 | E157: 1 | F157: 7 | G157: 1 | H157: 0 | I157: 0 | J157: 0 | K157: 0 | L157: F | M157: Serviço | N157: Serviço | O157: 1.7.1.0.4. | P157: AGETOP | Q157: 160421 | R157: MAO DE OBRA PARA COBERTURA C/TELHA COLONIAL PLAN | S157: m2 | T157: 831.04
A158: 2 | B158: 2 | C158: 2 | D158: 2 | E158: 1 | F158: 8 | G158: 0 | H158: 0 | I158: 0 | J158: 50 | K158: 2 | L158: F | M158: Nível 2 | N158: Nível 2 | O158: 1.8. | R158: ESQUADRIAS METÁLICAS | S158: -
A159: S | B159: 2 | C159: S | D159: 0 | E159: 1 | F159: 8 | G159: 0 | H159: 0 | I159: 0 | J159: 0 | K159: 0 | L159: F | M159: Serviço | N159: Serviço | O159: 1.8.0.0.1. | P159: COMPOSIÇÃO | Q159: COMP 084_SEE | R159: GUARDA-CORPO COM CORRIMÃO - SEDUC | S159: M | T159: 17.6
A160: 2 | B160: 2 | C160: 2 | D160: 4 | E160: 1 | F160: 9 | G160: 0 | H160: 0 | I160: 0 | J160: 48 | K160: 4 | L160: F | M160: Nível 2 | N160: Nível 2 | O160: 1.9. | R160: REVESTIMENTO DE PAREDE | S160: -
A161: S | B161: 2 | C161: S | D161: 0 | E161: 1 | F161: 9 | G161: 0 | H161: 0 | I161: 0 | J161: 0 | K161: 0 | L161: F | M161: Serviço | N161: Serviço | O161: 1.9.0.0.1. | P161: SINAPI | Q161: 87553 | R161: EMBOÇO, PARA RECEBIMENTO DE CERÂMICA, EM ARGAMASSA TRAÇO 1:2:8, PREPARO MECÂNICO COM BETONEIRA 400L, APLICADO MANUALMENTE EM FACES INTERNAS DE PAREDES, PARA AMBIENTE COM ÁREA MAIOR QUE 10M2, ESPESSURA DE 10MM, COM EXECUÇÃO DE TALISCAS. AF_06/2014 | S161: M2 | T161: 17.1
A162: =CHOOSE(1+LOG(1+2*(ORÇAMENTO.Nivel="Nível 1")+4*(ORÇAMENTO.Nivel="Nível 2")+8*(ORÇAMENTO.Nivel="Nível 3")+16*(ORÇAMENTO.Nivel="Nível 4")+32*(ORÇAMENTO.Nivel="Serviço"),2),0,1,2,3,4,"S") -> S | B162: 2 | C162: S | D162: 0 | E162: 1 | F162: 9 | G162: 0 | H162: 0 | I162: =IF(AND($C162<=4,$C162<>0),0,IF(AND($C162="S",$W162>0),OFFSET(I162,-1,0)+1,OFFSET(I162,-1,0))) -> 0 | J162: 0 | K162: 0 | L162: F | M162: Serviço | N162: Serviço | O162: 1.9.0.0.2. | P162: AGETOP | Q162: 200102 | R162: COSTURA DE TRINCA EM ALVENARIA DE TIJOLO | S162: m | T162: 2
A163: S | B163: 2 | C163: S | D163: 0 | E163: =IF($C163=1,OFFSET(E163,-1,0)+1,OFFSET(E163,-1,0)) -> 1 | F163: =IF($C163=1,0,IF($C163=2,OFFSET(F163,-1,0)+1,OFFSET(F163,-1,0))) -> 9 | G163: =IF(AND($C163<=2,$C163<>0),0,IF($C163=3,OFFSET(G163,-1,0)+1,OFFSET(G163,-1,0))) -> 0 | H163: =IF(AND($C163<=3,$C163<>0),0,IF($C163=4,OFFSET(H163,-1,0)+1,OFFSET(H163,-1,0))) -> 0 | I163: 0 | J163: 0 | K163: 0 | L163: F | M163: Serviço | N163: Serviço | O163: 1.9.0.0.3. | P163: SINAPI | Q163: 87273 | R163: REVESTIMENTO CERÂMICO PARA PAREDES INTERNAS COM PLACAS TIPO ESMALTADA EXTRA DE DIMENSÕES 33X45 CM APLICADAS EM AMBIENTES DE ÁREA MAIOR QUE 5 M² NA ALTURA INTEIRA DAS PAREDES. AF_06/2014 | S163: M2 | T163: 17.1
A164: 2 | B164: =IF(OR(C164="s",C164=0),OFFSET(B164,-1,0),C164) -> 2 | C164: =IF(OFFSET(C164,-1,0)="L",1,IF(OFFSET(C164,-1,0)=1,2,IF(OR(A164="s",A164=0),"S",IF(AND(OFFSET(C164,-1,0)=2,A164=4),3,IF(AND(OR(OFFSET(C164,-1,0)="s",OFFSET(C164,-1,0)=0),A164<>"s",A164>OFFSET(B164,-1,0)),OFFSET(B164,-1,0),A164))))) -> 2 | D164: =IF(OR(C164="S",C164=0),0,IF(ISERROR(K164),J164,SMALL(J164:K164,1))) -> 13 | E164: 1 | F164: 10 | G164: 0 | H164: 0 | I164: 0 | J164: 44 | K164: 13 | L164: F | M164: Nível 2 | N164: Nível 2 | O164: 1.10. | R164: REVESTIMENTO DE PISO | S164: -
A165: 3 | B165: 3 | C165: 3 | D165: 2 | E165: 1 | F165: 10 | G165: 1 | H165: 0 | I165: 0 | J165: 12 | K165: 2 | L165: F | M165: Nível 3 | N165: Nível 3 | O165: 1.10.1. | R165: LASTRO | S165: -
A166: S | B166: 3 | C166: S | D166: 0 | E166: 1 | F166: 10 | G166: 1 | H166: 0 | I166: 0 | J166: 0 | K166: 0 | L166: F | M166: Serviço | N166: Serviço | O166: 1.10.1.0.1. | P166: AGETOP | Q166: 220101 | R166: LASTRO DE CONCRETO REGULARIZADO IMPERMEABILIZADO 1:3:6 ESP=5CM (BASE) | S166: m2 | T166: 552.36
A167: 3 | B167: 3 | C167: 3 | D167: 4 | E167: 1 | F167: 10 | G167: 2 | H167: 0 | I167: 0 | J167: 10 | K167: 4 | L167: F | M167: Nível 3 | N167: Nível 3 | O167: 1.10.2. | R167: GRANITINA | S167: -
A168: S | B168: 3 | C168: S | D168: 0 | E168: 1 | F168: 10 | G168: 2 | H168: 0 | I168: 0 | J168: 0 | K168: 0 | L168: F | M168: Serviço | N168: Serviço | O168: 1.10.2.0.1. | P168: AGETOP | Q168: 221106 | R168: GRANITINA 8MM FUNDIDA COM CONTRAPISO (1CI:3ARML) E=2CM E JUNTA PLASTICA 27MM (COM ÓXIDO DE FERRO) | S168: m2 | T168: 552.36
A169: S | B169: 3 | C169: S | D169: 0 | E169: 1 | F169: 10 | G169: 2 | H169: 0 | I169: 0 | J169: 0 | K169: 0 | L169: F | M169: Serviço | N169: Serviço | O169: 1.10.2.0.2. | P169: AGETOP | Q169: 221102 | R169: RODAPÉ FUNDIDO DE GRANITINA 7CM | S169: m | T169: 330.15
A170: S | B170: 3 | C170: S | D170: 0 | E170: 1 | F170: 10 | G170: 2 | H170: 0 | I170: 0 | J170: 0 | K170: 0 | L170: F | M170: Serviço | N170: Serviço | O170: 1.10.2.0.3. | P170: AGETOP | Q170: 221104 | R170: RASPAGEM E APLICAÇÃO RESINA ACRÍLICA DUAS DEMÃOS | S170: m2 | T170: 575.4705
A171: 3 | B171: 3 | C171: 3 | D171: 2 | E171: 1 | F171: 10 | G171: 3 | H171: 0 | I171: 0 | J171: 6 | K171: 2 | L171: F | M171: Nível 3 | N171: Nível 3 | O171: 1.10.3. | R171: CERÂMICO | S171: -
A172: S | B172: 3 | C172: S | D172: 0 | E172: 1 | F172: 10 | G172: 3 | H172: 0 | I172: 0 | J172: 0 | K172: 0 | L172: F | M172: Serviço | N172: Serviço | O172: 1.10.3.0.1. | P172: AGETOP | Q172: 220311 | R172: CERÂMICA ANTIDERRAPANTE PEI MAIOR OU IGUAL A 4 COM CONTRA PISO (1CI:3ARML) E ARGAMASSA COLANTE | S172: m2 | T172: 1.95
A173: 3 | B173: 3 | C173: 3 | D173: 2 | E173: 1 | F173: 10 | G173: 4 | H173: 0 | I173: 0 | J173: 4 | K173: 2 | L173: F | M173: Nível 3 | N173: Nível 3 | O173: 1.10.4. | R173: CONCRETO | S173: -
A174: S | B174: 3 | C174: S | D174: 0 | E174: 1 | F174: 10 | G174: 4 | H174: 0 | I174: 0 | J174: 0 | K174: 0 | L174: F | M174: Serviço | N174: Serviço | O174: 1.10.4.0.1. | P174: AGETOP | Q174: 220102 | R174: PISO CONCRETO DESEMPENADO ESPESSURA = 5 CM 1:2,5:3,5 | S174: m2 | T174: 699.26
A175: 3 | B175: 3 | C175: 3 | D175: 2 | E175: 1 | F175: 10 | G175: 5 | H175: 0 | I175: 0 | J175: 2 | K175: 28 | L175: F | M175: Nível 3 | N175: Nível 3 | O175: 1.10.5. | R175: PODOTÁTIL | S175: -
A176: S | B176: 3 | C176: S | D176: 0 | E176: 1 | F176: 10 | G176: 5 | H176: 0 | I176: 0 | J176: 0 | K176: 0 | L176: F | M176: Serviço | N176: Serviço | O176: 1.10.5.0.1. | P176: AGETOP | Q176: 221126 | R176: PISO DE LADRILHO HIDRÁULICO COLORIDO MODELO TÁTIL ( ALERTA OU DIRECIONAL) SEM LASTRO | S176: m2 | T176: 55.11
A177: 2 | B177: 2 | C177: 2 | D177: 3 | E177: 1 | F177: 11 | G177: 0 | H177: 0 | I177: 0 | J177: 31 | K177: 3 | L177: F | M177: Nível 2 | N177: Nível 2 | O177: 1.11. | R177: FERRAGENS | S177: -
A178: S | B178: 2 | C178: S | D178: 0 | E178: 1 | F178: 11 | G178: 0 | H178: 0 | I178: 0 | J178: 0 | K178: 0 | L178: F | M178: Serviço | N178: Serviço | O178: 1.11.0.0.1. | P178: AGETOP | Q178: 230174 | R178: BARRA DE APOIO EM AÇO INOX - 40 CM | S178: un | T178: 2
A179: S | B179: 2 | C179: S | D179: 0 | E179: 1 | F179: 11 | G179: 0 | H179: 0 | I179: 0 | J179: 0 | K179: 0 | L179: F | M179: Serviço | N179: Serviço | O179: 1.11.0.0.2. | P179: AGETOP | Q179: 230176 | R179: BARRA DE APOIO EM AÇO INOX - 80 CM | S179: un | T179: 6
A180: 2 | B180: 2 | C180: 2 | D180: 6 | E180: 1 | F180: 12 | G180: 0 | H180: 0 | I180: 0 | J180: 28 | K180: 6 | L180: F | M180: Nível 2 | N180: Nível 2 | O180: 1.12. | R180: ADMINISTRAÇÃO | S180: -
A181: 3 | B181: 3 | C181: 3 | D181: 3 | E181: 1 | F181: 12 | G181: 1 | H181: 0 | I181: 0 | J181: 5 | K181: 3 | L181: F | M181: Nível 3 | N181: Nível 3 | O181: 1.12.1. | R181: MENSALISTAS | S181: -
A182: S | B182: 3 | C182: S | D182: 0 | E182: 1 | F182: 12 | G182: 1 | H182: 0 | I182: 0 | J182: 0 | K182: 0 | L182: F | M182: Serviço | N182: Serviço | O182: 1.12.1.0.1. | P182: SINAPI | Q182: 90778 | R182: ENGENHEIRO CIVIL DE OBRA PLENO COM ENCARGOS COMPLEMENTARES | S182: H | T182: 176 | X182: Referência: AGETOP - 250101
A183: S | B183: 3 | C183: S | D183: 0 | E183: 1 | F183: 12 | G183: 1 | H183: 0 | I183: 0 | J183: 0 | K183: 0 | L183: F | M183: Serviço | N183: Serviço | O183: 1.12.1.0.2. | P183: SINAPI | Q183: 90776 | R183: ENCARREGADO GERAL COM ENCARGOS COMPLEMENTARES | S183: H | T183: 880 | X183: Referência: AGETOP - 250103
A184: 3 | B184: 3 | C184: 3 | D184: 2 | E184: 1 | F184: 12 | G184: 2 | H184: 0 | I184: 0 | J184: 2 | K184: 10 | L184: F | M184: Nível 3 | N184: Nível 3 | O184: 1.12.2. | R184: LAUDO DE ESTANQUEIDADE | S184: -
A185: S | B185: 3 | C185: S | D185: 0 | E185: 1 | F185: 12 | G185: 2 | H185: 0 | I185: 0 | J185: 0 | K185: 0 | L185: F | M185: Serviço | N185: Serviço | O185: 1.12.2.0.1. | P185: SINAPI | Q185: 90778 | R185: ENGENHEIRO CIVIL DE OBRA PLENO COM ENCARGOS COMPLEMENTARES | S185: H | T185: 16 | X185: Referência: AGETOP - 250101
A186: 2 | B186: 2 | C186: 2 | D186: 20 | E186: 1 | F186: 13 | G186: 0 | H186: 0 | I186: 0 | J186: 22 | K186: 20 | L186: F | M186: Nível 2 | N186: Nível 2 | O186: 1.13. | R186: PINTURA | S186: -
A187: 3 | B187: 3 | C187: 3 | D187: 4 | E187: 1 | F187: 13 | G187: 1 | H187: 0 | I187: 0 | J187: 19 | K187: 4 | L187: F | M187: Nível 3 | N187: Nível 3 | O187: 1.13.1. | R187: ESMALTE SINTÉTICO | S187: -
A188: S | B188: 3 | C188: S | D188: 0 | E188: 1 | F188: 13 | G188: 1 | H188: 0 | I188: 0 | J188: 0 | K188: 0 | L188: F | M188: Serviço | N188: Serviço | O188: 1.13.1.0.1. | P188: AGETOP | Q188: 260105 | R188: REMOCAO DE PINTURA ANTIGA A OLEO OU ESMALTE | S188: m2 | T188: 634.56
A189: S | B189: 3 | C189: S | D189: 0 | E189: 1 | F189: 13 | G189: 1 | H189: 0 | I189: 0 | J189: 0 | K189: 0 | L189: F | M189: Serviço | N189: Serviço | O189: 1.13.1.0.2. | P189: SINAPI | Q189: 88497 | R189: APLICAÇÃO E LIXAMENTO DE MASSA LÁTEX EM PAREDES, DUAS DEMÃOS. AF_06/2014 | S189: M2 | T189: 190.368 | X189: Referência: AGETOP - 261300
A190: =CHOOSE(1+LOG(1+2*(ORÇAMENTO.Nivel="Nível 1")+4*(ORÇAMENTO.Nivel="Nível 2")+8*(ORÇAMENTO.Nivel="Nível 3")+16*(ORÇAMENTO.Nivel="Nível 4")+32*(ORÇAMENTO.Nivel="Serviço"),2),0,1,2,3,4,"S") -> S | B190: 3 | C190: S | D190: 0 | E190: 1 | F190: 13 | G190: 1 | H190: 0 | I190: =IF(AND($C190<=4,$C190<>0),0,IF(AND($C190="S",$W190>0),OFFSET(I190,-1,0)+1,OFFSET(I190,-1,0))) -> 0 | J190: 0 | K190: 0 | L190: F | M190: Serviço | N190: Serviço | O190: 1.13.1.0.3. | P190: AGETOP | Q190: 261550 | R190: PINT.ESMALTE SINT.PAREDES - 2 DEM.C/SELADOR | S190: m2 | T190: 634.56
A191: 3 | B191: 3 | C191: 3 | D191: 3 | E191: 1 | F191: 13 | G191: 2 | H191: 0 | I191: 0 | J191: 15 | K191: 3 | L191: F | M191: Nível 3 | N191: Nível 3 | O191: 1.13.2. | P191: AGETOP | R191: LÁTEX ACRÍLICA | S191: -
A192: S | B192: 3 | C192: S | D192: 0 | E192: 1 | F192: 13 | G192: 2 | H192: 0 | I192: 0 | J192: 0 | K192: 0 | L192: F | M192: Serviço | N192: Serviço | O192: 1.13.2.0.1. | P192: SINAPI | Q192: 88497 | R192: APLICAÇÃO E LIXAMENTO DE MASSA LÁTEX EM PAREDES, DUAS DEMÃOS. AF_06/2014 | S192: M2 | T192: 285.552 | X192: Referência: AGETOP - 261300
A193: S | B193: 3 | C193: S | D193: 0 | E193: =IF($C193=1,OFFSET(E193,-1,0)+1,OFFSET(E193,-1,0)) -> 1 | F193: =IF($C193=1,0,IF($C193=2,OFFSET(F193,-1,0)+1,OFFSET(F193,-1,0))) -> 13 | G193: =IF(AND($C193<=2,$C193<>0),0,IF($C193=3,OFFSET(G193,-1,0)+1,OFFSET(G193,-1,0))) -> 2 | H193: =IF(AND($C193<=3,$C193<>0),0,IF($C193=4,OFFSET(H193,-1,0)+1,OFFSET(H193,-1,0))) -> 0 | I193: 0 | J193: 0 | K193: 0 | L193: F | M193: Serviço | N193: Serviço | O193: 1.13.2.0.2. | P193: SINAPI | Q193: 88489 | R193: APLICAÇÃO MANUAL DE PINTURA COM TINTA LÁTEX ACRÍLICA EM PAREDES, DUAS DEMÃOS. AF_06/2014 | S193: M2 | T193: 634.56 | X193: Referência: AGETOP - 261001
A194: 3 | B194: 3 | C194: 3 | D194: 3 | E194: 1 | F194: 13 | G194: 3 | H194: 0 | I194: 0 | J194: 12 | K194: 3 | L194: F | M194: Nível 3 | N194: Nível 3 | O194: 1.13.3. | P194: AGETOP | R194: TETO | S194: -
A195: S | B195: 3 | C195: S | D195: 0 | E195: 1 | F195: 13 | G195: 3 | H195: 0 | I195: 0 | J195: 0 | K195: 0 | L195: F | M195: Serviço | N195: Serviço | O195: 1.13.3.0.1. | P195: SINAPI | Q195: 88496 | R195: APLICAÇÃO E LIXAMENTO DE MASSA LÁTEX EM TETO, DUAS DEMÃOS. AF_06/2014 | S195: M2 | T195: 158.64 | X195: Referência: AGETOP - 261300
A196: S | B196: 3 | C196: S | D196: 0 | E196: 1 | F196: 13 | G196: 3 | H196: 0 | I196: 0 | J196: 0 | K196: 0 | L196: F | M196: Serviço | N196: Serviço | O196: 1.13.3.0.2. | P196: SINAPI | Q196: 88486 | R196: APLICAÇÃO MANUAL DE PINTURA COM TINTA LÁTEX PVA EM TETO, DUAS DEMÃOS. AF_06/2014 | S196: M2 | T196: 579.14 | X196: Referência: AGETOP - 261307
A197: 3 | B197: 3 | C197: 3 | D197: 3 | E197: 1 | F197: 13 | G197: 4 | H197: 0 | I197: 0 | J197: 9 | K197: 3 | L197: F | M197: Nível 3 | N197: Nível 3 | O197: 1.13.4. | P197: AGETOP | R197: EXTERNA | S197: -
A198: S | B198: =IF(OR(C198="s",C198=0),OFFSET(B198,-1,0),C198) -> 3 | C198: =IF(OFFSET(C198,-1,0)="L",1,IF(OFFSET(C198,-1,0)=1,2,IF(OR(A198="s",A198=0),"S",IF(AND(OFFSET(C198,-1,0)=2,A198=4),3,IF(AND(OR(OFFSET(C198,-1,0)="s",OFFSET(C198,-1,0)=0),A198<>"s",A198>OFFSET(B198,-1,0)),OFFSET(B198,-1,0),A198))))) -> S | D198: =IF(OR(C198="S",C198=0),0,IF(ISERROR(K198),J198,SMALL(J198:K198,1))) -> 0 | E198: 1 | F198: 13 | G198: 4 | H198: 0 | I198: 0 | J198: 0 | K198: 0 | L198: F | M198: Serviço | N198: Serviço | O198: 1.13.4.0.1. | P198: AGETOP | Q198: 260202 | R198: CAIACAO DUAS DEMAOS MUROS E PAREDES - (OB.C.) | S198: m2 | T198: 360
A199: S | B199: 3 | C199: S | D199: 0 | E199: 1 | F199: 13 | G199: 4 | H199: 0 | I199: 0 | J199: 0 | K199: 0 | L199: F | M199: Serviço | N199: Serviço | O199: 1.13.4.0.2. | P199: SINAPI | Q199: 88423 | R199: APLICAÇÃO MANUAL DE PINTURA COM TINTA TEXTURIZADA ACRÍLICA EM PAREDES EXTERNAS DE CASAS, UMA COR. AF_06/2014 | S199: M2 | T199: 492.45 | X199: Referência: AGETOP - 260601
A200: 3 | B200: 3 | C200: 3 | D200: 3 | E200: 1 | F200: 13 | G200: 5 | H200: 0 | I200: 0 | J200: 6 | K200: 3 | L200: F | M200: Nível 3 | N200: Nível 3 | O200: 1.13.5. | P200: AGETOP | R200: ESQUADRIAS EXISTENTES | S200: -
A201: S | B201: 3 | C201: S | D201: 0 | E201: 1 | F201: 13 | G201: 5 | H201: 0 | I201: 0 | J201: 0 | K201: 0 | L201: F | M201: Serviço | N201: Serviço | O201: 1.13.5.0.1. | P201: AGETOP | Q201: 260105 | R201: REMOCAO DE PINTURA ANTIGA A OLEO OU ESMALTE | S201: m2 | T201: 238.5
A202: S | B202: 3 | C202: S | D202: 0 | E202: 1 | F202: 13 | G202: 5 | H202: 0 | I202: 0 | J202: 0 | K202: 0 | L202: F | M202: Serviço | N202: Serviço | O202: 1.13.5.0.2. | P202: SINAPI | Q202: 73924/3 | R202: PINTURA ESMALTE FOSCO, DUAS DEMAOS, SOBRE SUPERFICIE METALICA | S202: M2 | T202: 238.5 | X202: Referência: AGETOP - 261503
A203: 3 | B203: 3 | C203: 3 | D203: 3 | E203: 1 | F203: 13 | G203: 6 | H203: 0 | I203: 0 | J203: 3 | L203: F | M203: Nível 3 | N203: Nível 3 | O203: 1.13.6. | P203: AGETOP | R203: OUTROS | S203: -
A204: S | B204: 3 | C204: S | D204: 0 | E204: 1 | F204: 13 | G204: 6 | H204: 0 | I204: 0 | J204: 0 | K204: 0 | L204: F | M204: Serviço | N204: Serviço | O204: 1.13.6.0.1. | P204: AGETOP | Q204: 200102 | R204: COSTURA DE TRINCA EM ALVENARIA DE TIJOLO | S204: m | T204: 2
A205: S | B205: 3 | C205: S | D205: 0 | E205: 1 | F205: 13 | G205: 6 | H205: 0 | I205: 0 | J205: 0 | K205: 0 | L205: F | M205: Serviço | N205: Serviço | O205: 1.13.6.0.2. | P205: AGETOP | Q205: 261620 | R205: LETREIRO MÉDIO A GRANDE PORTE EM PAREDE FEITO A PINCEL | S205: m2 | T205: 7.2
A206: 2 | B206: 2 | C206: 2 | D206: 2 | E206: 1 | F206: 14 | G206: 0 | H206: 0 | I206: 0 | J206: 2 | L206: F | M206: Nível 2 | N206: Nível 2 | O206: 1.14. | R206: DIVERSOS | S206: -
... 170 more rows

Sheet Resumo
B3: UNIDADE ESCOLAR | G3: CÓDIGO INEP
B4: =Orçamento!$O$4 -> ESCOLA ESTADUAL EDMO TEIXEIRA | G4: =Orçamento!V4 -> 52027147
B6: OBRA | G6: CIDADE
B7: =Orçamento!$O$7 -> REFORMA E IMPLANTAÇÃO | G7: =Orçamento!$V$7 -> IPORÁ
B9: ENDEREÇO | G9: CRE
B10: =Orçamento!$R$10 -> AV. CAIAPÓ 282, SAO FRANCISCO, CEP:76200-000 | G10: =Orçamento!$O$10 -> IPORÁ
B12: REFERÊNCIA | D12: DATA | G12: ÁREA TOTAL CONSTRUÍDA (M²)
B13: =CONCATENATE("AGETOP E SINAPI - ",Orçamento!$W$10) -> AGETOP E SINAPI - DESONERADA | D13: =Orçamento!$S$7 -> 2020-04-23 | G13: =Orçamento!$S$13 -> 1124.37
A14: FILTRO
B15: RESUMO GERAL DO ORÇAMENTO
A16: ↓ | B16: ITEM | C16: DESCRIÇÃO DOS SERVIÇOS | E16: UNID | F16: QUANT | G16: PREÇO SEM BDI | H16: PREÇO COM BDI | I16: PARTICIP. (%)
A17: =IF(E17>0,"F","") -> F | B17: 1. | C17: =Orçamento!$P356 -> REFORMA | E17: UN | F17: 1 | G17: =IFERROR(Orçamento!S356,"-") -> 0 | H17: =IFERROR(Orçamento!V356,"") -> 0 | I17: =Orçamento!X356 -> 0
A18: =IF(E18>0,"F","") -> F | B18: 2. | C18: =Orçamento!$P357 -> IMPLANTAÇÃO | E18: UN | F18: 1 | G18: =IFERROR(Orçamento!S357,"-") -> 0 | H18: =IFERROR(Orçamento!V357,"") -> 0 | I18: =Orçamento!X357 -> 0
A19: F | B19: 3. | C19: =Orçamento!$P358 -> QUADRA EM ARCO MODELO 01 SEDUC | E19: UN | F19: 1 | G19: =IFERROR(Orçamento!S358,"-") -> 384166.85 | H19: =IFERROR(Orçamento!V358,"") -> 485604.08 | I19: =Orçamento!X358 -> 100
A20: F | B20: TOTAL GERAL DO ORÇAMENTO (R$) | G20: =SUM(G17:G19) -> 384166.85 | H20: =SUM(H17:H19) -> 485604.08 | I20: =SUM(I17:I19) -> 100
A21: F
A22: F

Sheet Somatório
B3: UNIDADE ESCOLAR | E3: CÓDIGO INEP
B4: =Orçamento!$O$4 -> ESCOLA ESTADUAL EDMO TEIXEIRA | E4: =Orçamento!V4 -> 52027147
B6: OBRA | E6: CIDADE
B7: =Orçamento!$O$7 -> REFORMA E IMPLANTAÇÃO | E7: =Orçamento!$V$7 -> IPORÁ
B9: ENDEREÇO | E9: CRE
B10: =Orçamento!$R$10 -> AV. CAIAPÓ 282, SAO FRANCISCO, CEP:76200-000 | E10: =Orçamento!$O$10 -> IPORÁ
B12: REFERÊNCIA | D12: DATA | E12: ÁREA TOTAL CONSTRUÍDA (M²)
B13: =CONCATENATE("AGETOP E SINAPI - ",Orçamento!$W$10) -> AGETOP E SINAPI - DESONERADA | D13: =Orçamento!$S$7 -> 2020-04-23 | E13: =Orçamento!$S$13 -> 1124.37
A14: FILTRO
B15: SOMATÓRIO DE SERVIÇOS
A16: ↓ | B16: ITEM | C16: DESCRIÇÃO DOS SERVIÇOS | D16: PREÇO SEM BDI (R$) | E16: PREÇO COM BDI (R$) | F16: PARTIC. ( % )
A17: =IF(D17>0,"F","") ->  | B17: a. | C17: =Orçamento!P322 -> SERVIÇOS PRELIMINARES | D17: =Orçamento!S322 -> 0 | E17: =Orçamento!V322 -> 0 | F17: =Orçamento!X322 -> 0
A18: =IF(D18>0,"F","") ->  | B18: b. | C18: =Orçamento!P323 -> TRANSPORTES | D18: =Orçamento!S323 -> 0 | E18: =Orçamento!V323 -> 0 | F18: =Orçamento!X323 -> 0
B19: c. | C19: =Orçamento!P324 -> SERVIÇO EM TERRA | D19: =Orçamento!S324 -> 0 | E19: =Orçamento!V324 -> 0 | F19: =Orçamento!X324 -> 0
B20: d. | C20: =Orçamento!P325 -> FUNDAÇÕES E SONDAGENS | D20: =Orçamento!S325 -> 0 | E20: =Orçamento!V325 -> 0 | F20: =Orçamento!X325 -> 0
B21: e. | C21: =Orçamento!P326 -> ESTRUTURA | D21: =Orçamento!S326 -> 0 | E21: =Orçamento!V326 -> 0 | F21: =Orçamento!X326 -> 0
B22: f. | C22: =Orçamento!P327 -> INSTALAÇÕES ELÉTRICAS | D22: =Orçamento!S327 -> 0 | E22: =Orçamento!V327 -> 0 | F22: =Orçamento!X327 -> 0
B23: g. | C23: =Orçamento!P328 -> INSTALAÇÕES HIDROSSANITÁRIAS | D23: =Orçamento!S328 -> 0 | E23: =Orçamento!V328 -> 0 | F23: =Orçamento!X328 -> 0
B24: h. | C24: =Orçamento!P329 -> INSTALAÇÕES ESPECIAIS | D24: =Orçamento!S329 -> 0 | E24: =Orçamento!V329 -> 0 | F24: =Orçamento!X329 -> 0
B25: i. | C25: =Orçamento!P330 -> ALVENARIAS E DIVISÓRIAS | D25: =Orçamento!S330 -> 0 | E25: =Orçamento!V330 -> 0 | F25: =Orçamento!X330 -> 0
B26: j. | C26: =Orçamento!P331 -> ALVENARIA AUTO-PORTANTE | D26: =Orçamento!S331 -> 0 | E26: =Orçamento!V331 -> 0 | F26: =Orçamento!X331 -> 0
B27: k. | C27: =Orçamento!P332 -> IMPERMEABILIZAÇÃO | D27: =Orçamento!S332 -> 0 | E27: =Orçamento!V332 -> 0 | F27: =Orçamento!X332 -> 0
B28: l. | C28: =Orçamento!P333 -> ISOLAMENTO TÉRMICO E ACÚSTICO | D28: =Orçamento!S333 -> 0 | E28: =Orçamento!V333 -> 0 | F28: =Orçamento!X333 -> 0
B29: m. | C29: =Orçamento!P334 -> ESTRUTURA DE MADEIRA | D29: =Orçamento!S334 -> 0 | E29: =Orçamento!V334 -> 0 | F29: =Orçamento!X334 -> 0
B30: n. | C30: =Orçamento!P335 -> ESTRUTURAS METÁLICAS | D30: =Orçamento!S335 -> 0 | E30: =Orçamento!V335 -> 0 | F30: =Orçamento!X335 -> 0
B31: o. | C31: =Orçamento!P336 -> COBERTURAS | D31: =Orçamento!S336 -> 0 | E31: =Orçamento!V336 -> 0 | F31: =Orçamento!X336 -> 0
B32: p. | C32: =Orçamento!P337 -> ESQUADRIAS DE MADEIRA | D32: =Orçamento!S337 -> 0 | E32: =Orçamento!V337 -> 0 | F32: =Orçamento!X337 -> 0
B33: q. | C33: =Orçamento!P338 -> ESQUADRIAS METÁLICAS | D33: =Orçamento!S338 -> 0 | E33: =Orçamento!V338 -> 0 | F33: =Orçamento!X338 -> 0
B34: r. | C34: =Orçamento!P339 -> VIDROS | D34: =Orçamento!S339 -> 0 | E34: =Orçamento!V339 -> 0 | F34: =Orçamento!X339 -> 0
B35: s. | C35: =Orçamento!P340 -> REVESTIMENTO DE PAREDE | D35: =Orçamento!S340 -> 0 | E35: =Orçamento!V340 -> 0 | F35: =Orçamento!X340 -> 0
B36: t. | C36: =Orçamento!P341 -> FORROS | D36: =Orçamento!S341 -> 0 | E36: =Orçamento!V341 -> 0 | F36: =Orçamento!X341 -> 0
B37: u. | C37: =Orçamento!P342 -> REVESTIMENTO DE PISO | D37: =Orçamento!S342 -> 0 | E37: =Orçamento!V342 -> 0 | F37: =Orçamento!X342 -> 0
B38: v. | C38: =Orçamento!P343 -> FERRAGENS | D38: =Orçamento!S343 -> 0 | E38: =Orçamento!V343 -> 0 | F38: =Orçamento!X343 -> 0
B39: w. | C39: =Orçamento!P344 -> MARCENARIA | D39: =Orçamento!S344 -> 0 | E39: =Orçamento!V344 -> 0 | F39: =Orçamento!X344 -> 0
B40: x. | C40: =Orçamento!P345 -> ADMINISTRAÇÃO | D40: =Orçamento!S345 -> 0 | E40: =Orçamento!V345 -> 0 | F40: =Orçamento!X345 -> 0
B41: y. | C41: =Orçamento!P346 -> PINTURA | D41: =Orçamento!S346 -> 0 | E41: =Orçamento!V346 -> 0 | F41: =Orçamento!X346 -> 0
B42: z. | C42: =Orçamento!P347 -> DIVERSOS | D42: =Orçamento!S347 -> 0 | E42: =Orçamento!V347 -> 0 | F42: =Orçamento!X347 -> 0
A43: F | B43: TOTAL GERAL DO ORÇAMENTO | D43: =SUM(D17:D42) -> 0 | E43: =SUM(E17:E42) -> 0 | F43: =SUM(F17:F42) -> 0
B45: (*) Para itens da AGETOP, os vidros não estão inclusos nas esquadrias e já foram considerados os custos de contramarco para as esquadrias de alumínio;

Sheet Cronog_120_Dias
B3: UNIDADE ESCOLAR | I3: PRAZO
B4: =Orçamento!$O$4 -> ESCOLA ESTADUAL EDMO TEIXEIRA | I4: 120 DIAS CORRIDOS
B6: OBRA | I6: DATA
B7: =Orçamento!$O$7 -> REFORMA E IMPLANTAÇÃO | I7: =Orçamento!$S$7 -> 2020-04-23
B9: LOCAL | I9: ÁREA TOTAL CONSTRUÍDA (M²)
A10: FILTRO | B10: =Orçamento!$V$7 -> IPORÁ | I10: =Orçamento!$S$13 -> 1124.37
B12: CRONOGRAMA - FÍSICO FINANCEIRO
A13: ↓ | B13: CUSTO TOTAL: | C13: =D93 -> 0 | D13: VALOR | E13: Dias: | F13: 30 | J13: 60 | N13: 90 | R13: 120 | V13: TOTAL
B14: DESCRIÇÃO DOS SERVIÇOS | E14: % | F14: 1ª PARCELA | J14: 2ª PARCELA | N14: 3ª PARCELA | R14: 4ª PARCELA
A15: =IF(D15>0,"F","") ->  | B15: SERVIÇOS PRELIMINARES | D15: =Orçamento!V322 -> 0 | E15: =Orçamento!X322 -> 0 | F15: =ROUND(F17*$D$15,2) -> 0 | J15: =ROUND(J17*$D$15,2) -> 0 | N15: =ROUND(N17*$D$15,2) -> 0 | R15: =ROUND(R17*$D$15,2) -> 0 | V15: =SUM(F15:U15) -> 0
A16: =IF(A15="F",A15,"") -> 
A17: =IF(A16="F",A16,"") ->  | F17: 1 | R17: =1-(F17+J17+N17) -> 0 | V17: =IFERROR(E15/100,"") -> 0
A18: =IF(D18>0,"F","") ->  | B18: TRANSPORTES | D18: =Orçamento!V323 -> 0 | E18: =Orçamento!X323 -> 0 | F18: =ROUND(F20*$D$18,2) -> 0 | J18: =ROUND(J20*$D$18,2) -> 0 | N18: =ROUND(N20*$D$18,2) -> 0 | R18: =ROUND(R20*$D$18,2) -> 0 | V18: =SUM(F18:U18) -> 0
A19: =IF(A18="F",A18,"") -> 
A20: =IF(A19="F",A19,"") ->  | F20: 0.8 | N20: 0.2 | R20: =1-(F20+J20+N20) -> 0 | V20: =IFERROR(E18/100,"") -> 0
A21: =IF(D21>0,"F","") ->  | B21: SERVIÇO EM TERRA | D21: =Orçamento!V324 -> 0 | E21: =Orçamento!X324 -> 0 | F21: =ROUND(F23*$D$21,2) -> 0 | J21: =ROUND(J23*$D$21,2) -> 0 | N21: =ROUND(N23*$D$21,2) -> 0 | R21: =ROUND(R23*$D$21,2) -> 0 | V21: =SUM(F21:U21) -> 0
A22: =IF(A21="F",A21,"") -> 
A23: =IF(A22="F",A22,"") ->  | F23: 0.07 | J23: 0.83 | R23: =1-(F23+J23+N23) -> 0.1 | V23: =IFERROR(E21/100,"") -> 0
A24: =IF(D24>0,"F","") ->  | B24: FUNDAÇÕES E SONDAGENS | D24: =Orçamento!V325 -> 0 | E24: =Orçamento!X325 -> 0 | F24: =ROUND(F26*$D$24,2) -> 0 | J24: =ROUND(J26*$D$24,2) -> 0 | N24: =ROUND(N26*$D$24,2) -> 0 | R24: =ROUND(R26*$D$24,2) -> 0 | V24: =SUM(F24:U24) -> 0
A25: =IF(A24="F",A24,"") -> 
A26: =IF(A25="F",A25,"") ->  | F26: 0.2 | J26: 0.8 | R26: =1-(F26+J26+N26) -> 0 | V26: =IFERROR(E24/100,"") -> 0
A27: =IF(D27>0,"F","") ->  | B27: ESTRUTURA | D27: =Orçamento!V326 -> 0 | E27: =Orçamento!X326 -> 0 | F27: =ROUND(F29*$D$27,2) -> 0 | J27: =ROUND(J29*$D$27,2) -> 0 | N27: =ROUND(N29*$D$27,2) -> 0 | R27: =ROUND(R29*$D$27,2) -> 0 | V27: =SUM(F27:U27) -> 0
A28: =IF(A27="F",A27,"") -> 
A29: =IF(A28="F",A28,"") ->  | J29: 0.8 | N29: 0.2 | R29: =1-(F29+J29+N29) -> 0 | V29: =IFERROR(E27/100,"") -> 0
A30: =IF(D30>0,"F","") ->  | B30: INST.ELET/TELEFÔNICA/CABEAMENTO ESTRUTURADO | D30: =Orçamento!V327 -> 0 | E30: =Orçamento!X327 -> 0 | F30: =ROUND(F32*$D$30,2) -> 0 | J30: =ROUND(J32*$D$30,2) -> 0 | N30: =ROUND(N32*$D$30,2) -> 0 | R30: =ROUND(R32*$D$30,2) -> 0 | V30: =SUM(F30:U30) -> 0
A31: =IF(A30="F",A30,"") -> 
A32: =IF(A31="F",A31,"") ->  | F32: 0.15 | J32: 0.2 | N32: 0.3 | R32: =1-(F32+J32+N32) -> 0.35 | V32: =IFERROR(E30/100,"") -> 0
A33: =IF(D33>0,"F","") ->  | B33: INSTALAÇÕES HIDROSSANITÁRIAS | D33: =Orçamento!V328 -> 0 | E33: =Orçamento!X328 -> 0 | F33: =ROUND(F35*$D$33,2) -> 0 | J33: =ROUND(J35*$D$33,2) -> 0 | N33: =ROUND(N35*$D$33,2) -> 0 | R33: =ROUND(R35*$D$33,2) -> 0 | V33: =SUM(F33:U33) -> 0
A34: =IF(A33="F",A33,"") -> 
A35: =IF(A34="F",A34,"") ->  | R35: =1-(F35+J35+N35) -> 1 | V35: =IFERROR(E33/100,"") -> 0
A36: =IF(D36>0,"F","") ->  | B36: INSTALAÇÕES ESPECIAIS | D36: =Orçamento!V329 -> 0 | E36: =Orçamento!X329 -> 0 | F36: =ROUND(F38*$D$36,2) -> 0 | J36: =ROUND(J38*$D$36,2) -> 0 | N36: =ROUND(N38*$D$36,2) -> 0 | R36: =ROUND(R38*$D$36,2) -> 0 | V36: =SUM(F36:U36) -> 0
A37: =IF(A36="F",A36,"") -> 
A38: =IF(A37="F",A37,"") ->  | J38: 1 | R38: =1-(F38+J38+N38) -> 0 | V38: =IFERROR(E36/100,"") -> 0
A39: =IF(D39>0,"F","") ->  | B39: ALVENARIA E DIVISÓRIAS | D39: =Orçamento!V330 -> 0 | E39: =Orçamento!X330 -> 0 | F39: =ROUND(F41*$D$39,2) -> 0 | J39: =ROUND(J41*$D$39,2) -> 0 | N39: =ROUND(N41*$D$39,2) -> 0 | R39: =ROUND(R41*$D$39,2) -> 0 | V39: =SUM(F39:U39) -> 0
A40: =IF(A39="F",A39,"") -> 
A41: =IF(A40="F",A40,"") ->  | N41: 1 | R41: =1-(F41+J41+N41) -> 0 | V41: =IFERROR(E39/100,"") -> 0
A42: =IF(D42>0,"F","") ->  | B42: ALVENARIA AUTO-PORTANTE | D42: =Orçamento!V331 -> 0 | E42: =Orçamento!X331 -> 0 | F42: =ROUND(F44*$D$42,2) -> 0 | J42: =ROUND(J44*$D$42,2) -> 0 | N42: =ROUND(N44*$D$42,2) -> 0 | R42: =ROUND(R44*$D$42,2) -> 0 | V42: =SUM(F42:U42) -> 0
A43: =IF(A42="F",A42,"") -> 
A44: =IF(A43="F",A43,"") ->  | R44: =1-(F44+J44+N44) -> 1 | V44: =IFERROR(E42/100,"") -> 0
A45: =IF(D45>0,"F","") ->  | B45: IMPERMEABILIZAÇÃO | D45: =Orçamento!V332 -> 0 | E45: =Orçamento!X332 -> 0 | F45: =ROUND(F47*$D$45,2) -> 0 | J45: =ROUND(J47*$D$45,2) -> 0 | N45: =ROUND(N47*$D$45,2) -> 0 | R45: =ROUND(R47*$D$45,2) -> 0 | V45: =SUM(F45:U45) -> 0
A46: =IF(A45="F",A45,"") -> 
A47: =IF(A46="F",A46,"") ->  | J47: 1 | R47: =1-(F47+J47+N47) -> 0 | V47: =IFERROR(E45/100,"") -> 0
A48: =IF(D48>0,"F","") ->  | B48: ISOLAMENTO TÉRMICO E ACÚSTICO | D48: =Orçamento!V333 -> 0 | E48: =Orçamento!X333 -> 0 | F48: =ROUND(F50*$D$48,2) -> 0 | J48: =ROUND(J50*$D$48,2) -> 0 | N48: =ROUND(N50*$D$48,2) -> 0 | R48: =ROUND(R50*$D$48,2) -> 0 | V48: =SUM(F48:U48) -> 0
A49: =IF(A48="F",A48,"") -> 
A50: =IF(A49="F",A49,"") ->  | R50: =1-(F50+J50+N50) -> 1 | V50: =IFERROR(E48/100,"") -> 0
A51: =IF(D51>0,"F","") ->  | B51: ESTRUTURA DE MADEIRA | D51: =Orçamento!V334 -> 0 | E51: =Orçamento!X334 -> 0 | F51: =ROUND(F53*$D$51,2) -> 0 | J51: =ROUND(J53*$D$51,2) -> 0 | N51: =ROUND(N53*$D$51,2) -> 0 | R51: =ROUND(R53*$D$51,2) -> 0 | V51: =SUM(F51:U51) -> 0
A52: =IF(A51="F",A51,"") -> 
A53: =IF(A52="F",A52,"") ->  | R53: =1-(F53+J53+N53) -> 1 | V53: =IFERROR(E51/100,"") -> 0
A54: =IF(D54>0,"F","") ->  | B54: ESTRUTURA METÁLICA | D54: =Orçamento!V335 -> 0 | E54: =Orçamento!X335 -> 0 | F54: =ROUND(F56*$D$54,2) -> 0 | J54: =ROUND(J56*$D$54,2) -> 0 | N54: =ROUND(N56*$D$54,2) -> 0 | R54: =ROUND(R56*$D$54,2) -> 0 | V54: =SUM(F54:U54) -> 0
A55: =IF(A54="F",A54,"") -> 
A56: =IF(A55="F",A55,"") ->  | N56: 1 | R56: =1-(F56+J56+N56) -> 0 | V56: =IFERROR(E54/100,"") -> 0
A57: =IF(D57>0,"F","") ->  | B57: COBERTURAS | D57: =Orçamento!V336 -> 0 | E57: =Orçamento!X336 -> 0 | F57: =ROUND(F59*$D$57,2) -> 0 | J57: =ROUND(J59*$D$57,2) -> 0 | N57: =ROUND(N59*$D$57,2) -> 0 | R57: =ROUND(R59*$D$57,2) -> 0 | V57: =SUM(F57:U57) -> 0
A58: =IF(A57="F",A57,"") -> 
A59: =IF(A58="F",A58,"") ->  | F59: 0 | J59: 0 | N59: 0 | R59: =1-(F59+J59+N59) -> 1 | V59: =IFERROR(E57/100,"") -> 0
A60: =IF(D60>0,"F","") ->  | B60: ESQUADRIAS DE MADEIRA | D60: =Orçamento!V337 -> 0 | E60: =Orçamento!X337 -> 0 | F60: =ROUND(F62*$D$60,2) -> 0 | J60: =ROUND(J62*$D$60,2) -> 0 | N60: =ROUND(N62*$D$60,2) -> 0 | R60: =ROUND(R62*$D$60,2) -> 0 | V60: =SUM(F60:U60) -> 0
A61: =IF(A60="F",A60,"") -> 
A62: =IF(A61="F",A61,"") ->  | R62: =1-(F62+J62+N62) -> 1 | V62: =IFERROR(E60/100,"") -> 0
A63: =IF(D63>0,"F","") ->  | B63: ESQUADRIAS METÁLICAS | D63: =Orçamento!V338 -> 0 | E63: =Orçamento!X338 -> 0 | F63: =ROUND(F65*$D$63,2) -> 0 | J63: =ROUND(J65*$D$63,2) -> 0 | N63: =ROUND(N65*$D$63,2) -> 0 | R63: =ROUND(R65*$D$63,2) -> 0 | V63: =SUM(F63:U63) -> 0
A64: =IF(A63="F",A63,"") -> 
A65: =IF(A64="F",A64,"") ->  | N65: 1 | R65: =1-(F65+J65+N65) -> 0 | V65: =IFERROR(E63/100,"") -> 0
A66: =IF(D66>0,"F","") ->  | B66: VIDROS | D66: =Orçamento!V339 -> 0 | E66: =Orçamento!X339 -> 0 | F66: =ROUND(F68*$D$66,2) -> 0 | J66: =ROUND(J68*$D$66,2) -> 0 | N66: =ROUND(N68*$D$66,2) -> 0 | R66: =ROUND(R68*$D$66,2) -> 0 | V66: =SUM(F66:U66) -> 0
A67: =IF(A66="F",A66,"") -> 
A68: =IF(A67="F",A67,"") ->  | F68: 0 | J68: 0 | N68: 0 | R68: =1-(F68+J68+N68) -> 1 | V68: =IFERROR(E66/100,"") -> 0
A69: =IF(D69>0,"F","") ->  | B69: REVESTIMENTO DE PAREDE | D69: =Orçamento!V340 -> 0 | E69: =Orçamento!X340 -> 0 | F69: =ROUND(F71*$D$69,2) -> 0 | J69: =ROUND(J71*$D$69,2) -> 0 | N69: =ROUND(N71*$D$69,2) -> 0 | R69: =ROUND(R71*$D$69,2) -> 0 | V69: =SUM(F69:U69) -> 0
A70: =IF(A69="F",A69,"") -> 
A71: =IF(A70="F",A70,"") ->  | F71: 1 | R71: =1-(F71+J71+N71) -> 0 | V71: =IFERROR(E69/100,"") -> 0
A72: =IF(D72>0,"F","") ->  | B72: FORROS | D72: =Orçamento!V341 -> 0 | E72: =Orçamento!X341 -> 0 | F72: =ROUND(F74*$D$72,2) -> 0 | J72: =ROUND(J74*$D$72,2) -> 0 | N72: =ROUND(N74*$D$72,2) -> 0 | R72: =ROUND(R74*$D$72,2) -> 0 | V72: =SUM(F72:U72) -> 0
A73: =IF(A72="F",A72,"") -> 
A74: =IF(A73="F",A73,"") ->  | F74: 0.24 | J74: 0.24 | N74: 0.24 | R74: =1-(F74+J74+N74) -> 0.28 | V74: =IFERROR(E72/100,"") -> 0
A75: =IF(D75>0,"F","") ->  | B75: REVESTIMENTO DE PISO | D75: =Orçamento!V342 -> 0 | E75: =Orçamento!X342 -> 0 | F75: =ROUND(F77*$D$75,2) -> 0 | J75: =ROUND(J77*$D$75,2) -> 0 | N75: =ROUND(N77*$D$75,2) -> 0 | R75: =ROUND(R77*$D$75,2) -> 0 | V75: =SUM(F75:U75) -> 0
A76: =IF(A75="F",A75,"") -> 
A77: =IF(A76="F",A76,"") ->  | J77: 0.5 | N77: 0.5 | R77: =1-(F77+J77+N77) -> 0 | V77: =IFERROR(E75/100,"") -> 0
A78: =IF(D78>0,"F","") ->  | B78: FERRAGENS | D78: =Orçamento!V343 -> 0 | E78: =Orçamento!X343 -> 0 | F78: =ROUND(F80*$D$78,2) -> 0 | J78: =ROUND(J80*$D$78,2) -> 0 | N78: =ROUND(N80*$D$78,2) -> 0 | R78: =ROUND(R80*$D$78,2) -> 0 | V78: =SUM(F78:U78) -> 0
A79: =IF(A78="F",A78,"") -> 
A80: =IF(A79="F",A79,"") ->  | F80: 0 | J80: 0 | N80: 0 | R80: =1-(F80+J80+N80) -> 1 | V80: =IFERROR(E78/100,"") -> 0
A81: =IF(D81>0,"F","") ->  | B81: MARCENARIA | D81: =Orçamento!V344 -> 0 | E81: =Orçamento!X344 -> 0 | F81: =ROUND(F83*$D$81,2) -> 0 | J81: =ROUND(J83*$D$81,2) -> 0 | N81: =ROUND(N83*$D$81,2) -> 0 | R81: =ROUND(R83*$D$81,2) -> 0 | V81: =SUM(F81:U81) -> 0
A82: =IF(A81="F",A81,"") -> 
A83: =IF(A82="F",A82,"") ->  | F83: 0.4 | J83: 0.4 | N83: 0.4 | R83: =1-F83 -> 0.6 | V83: =IFERROR(E81/100,"") -> 0
A84: =IF(D84>0,"F","") ->  | B84: ADMINISTRAÇÃO - MENSALISTAS | D84: =Orçamento!V345 -> 0 | E84: =Orçamento!X345 -> 0 | F84: =ROUND(F86*$D$84,2) -> 0 | J84: =ROUND(J86*$D$84,2) -> 0 | N84: =ROUND(N86*$D$84,2) -> 0 | R84: =ROUND(R86*$D$84,2) -> 0 | V84: =SUM(F84:U84) -> 0
A85: =IF(A84="F",A84,"") -> 
A86: =IF(A85="F",A85,"") ->  | F86: 0.25 | J86: 0.25 | N86: 0.25 | R86: =1-(F86+J86+N86) -> 0.25 | V86: =IFERROR(E84/100,"") -> 0
A87: =IF(D87>0,"F","") ->  | B87: PINTURA | D87: =Orçamento!V346 -> 0 | E87: =Orçamento!X346 -> 0 | F87: =ROUND(F89*$D$87,2) -> 0 | J87: =ROUND(J89*$D$87,2) -> 0 | N87: =ROUND(N89*$D$87,2) -> 0 | R87: =ROUND(R89*$D$87,2) -> 0 | V87: =SUM(F87:U87) -> 0
A88: =IF(A87="F",A87,"") -> 
A89: =IF(A88="F",A88,"") ->  | F89: 0.15 | J89: 0.2 | N89: 0.15 | R89: =1-(F89+J89+N89) -> 0.5 | V89: =IFERROR(E87/100,"") -> 0
A90: =IF(D90>0,"F","") ->  | B90: DIVERSOS | D90: =Orçamento!V347 -> 0 | E90: =Orçamento!X347 -> 0 | F90: =ROUND(F92*$D$90,2) -> 0 | J90: =ROUND(J92*$D$90,2) -> 0 | N90: =ROUND(N92*$D$90,2) -> 0 | R90: =ROUND(R92*$D$90,2) -> 0 | V90: =SUM(F90:U90) -> 0
A91: =IF(A90="F",A90,"") -> 
A92: =IF(A91="F",A91,"") ->  | R92: =1-(F92+J92+N92) -> 1 | V92: =IFERROR(E90/100,"") -> 0
A93: F | B93: CUSTO DO ORÇAMENTO | D93: =SUM(D15:D92) -> 0 | E93: =SUM(E15:E92) -> 0 | F93: =F15+F18+F21+F24+F27+F30+F33+F36+F39+F42+F45+F48+F51+F54+F57+F60+F63+F66+F69+F72+F75+F78+F81+F84+F87+F90 -> 0 | J93: =J15+J18+J21+J24+J27+J30+J33+J36+J39+J42+J45+J48+J51+J54+J57+J60+J63+J66+J69+J72+J75+J78+J81+J84+J87+J90 -> 0 | N93: =N15+N18+N21+N24+N27+N30+N33+N36+N39+N42+N45+N48+N51+N54+N57+N60+N63+N66+N69+N72+N75+N78+N81+N84+N87+N90 -> 0 | R93: =R15+R18+R21+R24+R27+R30+R33+R36+R39+R42+R45+R48+R51+R54+R57+R60+R63+R66+R69+R72+R75+R78+R81+R84+R87+R90 -> 0 | V93: =V15+V18+V21+V24+V27+V30+V33+V36+V39+V42+V45+V48+V51+V54+V57+V60+V63+V66+V69+V72+V75+V78+V81+V84+V87+V90 -> 0
A94: F | B94: PERCENTUAIS: | F94: =IFERROR(F93/D93,"") ->  | J94: =IFERROR(J93/D93,"") ->  | N94: =IFERROR(N93/D93,"") ->  | R94: =IFERROR(R93/D93,"") ->  | V94: =SUM(F94:U94) -> 0
A95: F | B95: TOTAIS ACUMULADOS: | F95: =F93 -> 0 | J95: =J93 -> 0 | N95: =N93 -> 0 | R95: =F95+R93 -> 0
A96: F | B96: PERCENTUAIS ACUMULADOS: | F96: =F94 ->  | J96: =J94+F96 ->  | N96: =N94+J96 ->  | R96: =IFERROR(N96+R94,"") -> 
A97: F
A98: F | B98: OBSERVAÇÕES:
A99: F | B99: Os pagamentos somente poderão ser efetuados mediante medição e atesto pelos técnicos da Secretaria da Educação.

Sheet Composição BDI
A3: UNIDADE ESCOLAR
A4: =Orçamento!$O$4 -> ESCOLA ESTADUAL EDMO TEIXEIRA
A6: OBRA
A7: =Orçamento!$O$7 -> REFORMA E IMPLANTAÇÃO
A9: ENDEREÇO
A10: =Orçamento!$R$10 -> AV. CAIAPÓ 282, SAO FRANCISCO, CEP:76200-000
A12: CIDADE
A13: =Orçamento!$V$7 -> IPORÁ
A15: CRE
A16: =Orçamento!$O$10 -> IPORÁ
A18: DETALHAMENTO DA COMPOSIÇÃO DE BDI
A19: COMPOSIÇÃO BDI PARA OBRAS CIVIS | F19: BDI CONSTRUÇÃO E REFORMA
A20: DESCRIÇÃO | B20: COEF. | C20: TAXA % (a.m) | D20: % no preço de venda | F20: Situação | G20: 1º Quartil | H20: Médio | I20: 3º Quartil
A21: 1) COFINS | B21: 1 | C21: 0.03 | D21: =C21 -> 0.03 | F21: =IF(OR(C21<G21,C21>I21),"FORA DO INTERVALO","OK") -> OK | G21: 0.03 | H21: 0.03 | I21: 0.03
A22: 2) PIS | B22: 1 | C22: 0.0065 | D22: =C22 -> 0.0065 | F22: =IF(OR(C22<G22,C22>I22),"FORA DO INTERVALO","OK") -> OK | G22: 0.0065 | H22: 0.0065 | I22: 0.0065
A23: 3) ISSQN | B23: 1 | C23: 0.025 | D23: =C23*B23 -> 0.025 | F23: OK | G23: 0.02 | H23: 0.035 | I23: 0.05
A24: 4) CPRB | B24: 1 | C24: 0.045 | D24: =C24 -> 0.045 | F24: OK | G24: 0.045 | H24: 0.045 | I24: 0.045
A25: 5) Administração Central | B25: 1 | C25: 0.0368 | D25: 0.0368 | F25: OK | G25: 0.03 | H25: 0.04 | I25: 0.055
A26: 6) Despesas Financeiras | B26: 1 | C26: 0.0056 | D26: 0.0056 | F26: FORA DO INTERVALO | G26: 0.0059 | H26: 0.0123 | I26: 0.0139
A27: 7) Seguros + Garantias | B27: 1 | C27: 0.0012 | D27: 0.0012 | F27: FORA DO INTERVALO | G27: 0.008 | H27: 0.008 | I27: 0.01
A28: 8) Risco | B28: 1 | C28: 0.0097 | D28: 0.0097 | F28: OK | G28: 0.0097 | H28: 0.0127 | I28: 0.0127
A29: 9) Lucro | B29: 1 | C29: 0.072 | D29: 0.072 | F29: OK | G29: 0.0616 | H29: 0.074 | I29: 0.0896
A30: BDI - FINAL | D30: =(((1+D25+D27+D28)*(1+D26)*(1+D29))/(1-(D21+D22+D23+D24))-1) -> 0.2640447148 | F30: =IF(OR(D30<G30,D30>I30),"FORA DO INTERVALO","OK") -> FORA DO INTERVALO | G30: 0.2034 | H30: 0.2212 | I30: 0.25
A32: Notas:
A33: (1) e (2) Alíquota definida por lei.
A34: (3) Alíquota e base de cálculo definidas pela legislação municipal.
A35: (4) Alíquota definida pelas leis 12.546/11, 12844/13 e 13.161/15 (CPRB – contribuição previdenciária sobre a receita bruta).
A36: (5) Valores definidos a partir dos limites no Acórdão nº 2.622/2013 - TCU – Plenário. Valores entre o 1º e 3º quartis.
A37: (6) Valor calculado pela expressão matemática do acórdão 2.369/2011 – TCU – Plenário e disponibilizado pela AGETOP em dezembro de 2018. (Foi utilizado para o cálculo a média da Taxa SELIC no período de 11/2017 a 10/2018)
A39: (7) Valores definidos pela AGETOP a partir dos limites no Acórdão nº 2.622/2013 - TCU – Plenário. Valores médios. Observação da AGETOP: (Seguros contra erros de execução, incêndio e explosão, danos da natureza (vendaval, destelhamento, alagamento, inundação, desmoronamento, geadas etc.), emprego de material defeituoso ou inadequado, roubo e/ou furto qualificado, quebra de equipamentos, desmoronamento de estrutura, nas modalidades de Obras Civis em Construção (OCC); Instalação e Montagem (IM); e Obras Civis em Construção e Instalação e Montagem (OCC/IM). Bem como coberturas adicionais para ampliação dessas coberturas básicas, como: cobertura de responsabilidade civil geral, cobertura de responsabilidade civil cruzada, cobertura de despesas extraordinárias, cobertura de tumultos, cobertura de desentulho do local, cobertura de riscos do fabricante, dentre outras, incluindo o seguro de vida em grupo regido pela convenção coletiva dos trabalhadores na indústria da construção civil). A partir de 24/02/2015 por intermédio da Portaria 449/2015 a Presidência da AGETOP, na pessoa do Senhor Jayme Eduardo Rincon, determinou a exclusão dos valores referentes aos Seguros de Risco de Engenharia e Responsabilidade Civil do Profissional na composição do cálculo do B.D.I..
A40: (8) Valores definidos a partir dos limites no Acórdão nº 2.622/2013 - TCU – Plenário. Valores entre 1º e 3° quartis.
A41: (9) Valores definidos a partir dos limites definidos no Acórdão nº 2.622/2013 - TCU – Plenário. Valores adotados e praticados no mercado ( “ ex ante ” ) ou aqueles entre os 1º e 3º quartis.
A43: (*) A fórmula para estipulação da taxa de BDI estimado adotado é a mesma que foi aplicada para a obtenção das tabelas contidas no Acórdão n. 2.622/2013 – TCUPlenário
A45: Obs.: Para obras com valores superiores a R$ 20.000.000,00 sugere-se recalcular o BDI, dimensionando as taxas de administração central e lucro para patamares inferiores ao estipulado acima.

Sheet Relatório CENTRAL
B3: UNIDADE ESCOLAR | D3: CIDADE
B4: =Orçamento!$O$4 -> ESCOLA ESTADUAL EDMO TEIXEIRA | D4: =Orçamento!$V$7 -> IPORÁ
B6: OBRA | D6: CRE
B7: =Orçamento!$O$7 -> REFORMA E IMPLANTAÇÃO | D7: =Orçamento!$O$10 -> IPORÁ
B9: ENDEREÇO | D9: DATA
A10: FILTRO | B10: =Orçamento!$R$10 -> AV. CAIAPÓ 282, SAO FRANCISCO, CEP:76200-000 | D10: =Orçamento!$S$7 -> 2020-04-23
B12: RELATÓRIO CENTRAL
A13: ↓ | B13: CÓDIGO | C13: ETAPA | D13: PREÇO (R$) C/ BDI | E13: PARTIC ( % )
A14: =IF(D14>0,"F","") ->  | B14: =Orçamento!O322 -> a. | C14: =Orçamento!P322 -> SERVIÇOS PRELIMINARES | D14: =Orçamento!V322 -> 0 | E14: =Orçamento!X322 -> 0
A15: =IF(D15>0,"F","") ->  | B15: =Orçamento!O323 -> b. | C15: =Orçamento!P323 -> TRANSPORTES | D15: =Orçamento!V323 -> 0 | E15: =Orçamento!X323 -> 0
B16: =Orçamento!O324 -> c. | C16: =Orçamento!P324 -> SERVIÇO EM TERRA | D16: =Orçamento!V324 -> 0 | E16: =Orçamento!X324 -> 0
B17: =Orçamento!O325 -> d. | C17: =Orçamento!P325 -> FUNDAÇÕES E SONDAGENS | D17: =Orçamento!V325 -> 0 | E17: =Orçamento!X325 -> 0
B18: =Orçamento!O326 -> e. | C18: =Orçamento!P326 -> ESTRUTURA | D18: =Orçamento!V326 -> 0 | E18: =Orçamento!X326 -> 0
B19: =Orçamento!O327 -> f. | C19: =Orçamento!P327 -> INSTALAÇÕES ELÉTRICAS | D19: =Orçamento!V327 -> 0 | E19: =Orçamento!X327 -> 0
B20: =Orçamento!O328 -> g. | C20: =Orçamento!P328 -> INSTALAÇÕES HIDROSSANITÁRIAS | D20: =Orçamento!V328 -> 0 | E20: =Orçamento!X328 -> 0
B21: =Orçamento!O329 -> h | C21: =Orçamento!P329 -> INSTALAÇÕES ESPECIAIS | D21: =Orçamento!V329 -> 0 | E21: =Orçamento!X329 -> 0
B22: =Orçamento!O330 -> i. | C22: =Orçamento!P330 -> ALVENARIAS E DIVISÓRIAS | D22: =Orçamento!V330 -> 0 | E22: =Orçamento!X330 -> 0
B23: =Orçamento!O331 -> j. | C23: =Orçamento!P331 -> ALVENARIA AUTO-PORTANTE | D23: =Orçamento!V331 -> 0 | E23: =Orçamento!X331 -> 0
B24: =Orçamento!O332 -> k. | C24: =Orçamento!P332 -> IMPERMEABILIZAÇÃO | D24: =Orçamento!V332 -> 0 | E24: =Orçamento!X332 -> 0
B25: =Orçamento!O333 -> l. | C25: =Orçamento!P333 -> ISOLAMENTO TÉRMICO E ACÚSTICO | D25: =Orçamento!V333 -> 0 | E25: =Orçamento!X333 -> 0
B26: =Orçamento!O334 -> m. | C26: =Orçamento!P334 -> ESTRUTURA DE MADEIRA | D26: =Orçamento!V334 -> 0 | E26: =Orçamento!X334 -> 0
B27: =Orçamento!O335 -> n. | C27: =Orçamento!P335 -> ESTRUTURAS METÁLICAS | D27: =Orçamento!V335 -> 0 | E27: =Orçamento!X335 -> 0
B28: =Orçamento!O336 -> o. | C28: =Orçamento!P336 -> COBERTURAS | D28: =Orçamento!V336 -> 0 | E28: =Orçamento!X336 -> 0
B29: =Orçamento!O337 -> p. | C29: =Orçamento!P337 -> ESQUADRIAS DE MADEIRA | D29: =Orçamento!V337 -> 0 | E29: =Orçamento!X337 -> 0
B30: =Orçamento!O338 -> q. | C30: =Orçamento!P338 -> ESQUADRIAS METÁLICAS | D30: =Orçamento!V338 -> 0 | E30: =Orçamento!X338 -> 0
B31: =Orçamento!O339 -> r. | C31: =Orçamento!P339 -> VIDROS | D31: =Orçamento!V339 -> 0 | E31: =Orçamento!X339 -> 0
B32: =Orçamento!O340 -> s. | C32: =Orçamento!P340 -> REVESTIMENTO DE PAREDE | D32: =Orçamento!V340 -> 0 | E32: =Orçamento!X340 -> 0
B33: =Orçamento!O341 -> t. | C33: =Orçamento!P341 -> FORROS | D33: =Orçamento!V341 -> 0 | E33: =Orçamento!X341 -> 0
B34: =Orçamento!O342 -> u. | C34: =Orçamento!P342 -> REVESTIMENTO DE PISO | D34: =Orçamento!V342 -> 0 | E34: =Orçamento!X342 -> 0
B35: =Orçamento!O343 -> v. | C35: =Orçamento!P343 -> FERRAGENS | D35: =Orçamento!V343 -> 0 | E35: =Orçamento!X343 -> 0
B36: =Orçamento!O344 -> w. | C36: =Orçamento!P344 -> MARCENARIA | D36: =Orçamento!V344 -> 0 | E36: =Orçamento!X344 -> 0
B37: =Orçamento!O345 -> x. | C37: =Orçamento!P345 -> ADMINISTRAÇÃO | D37: =Orçamento!V345 -> 0 | E37: =Orçamento!X345 -> 0
B38: =Orçamento!O346 -> y. | C38: =Orçamento!P346 -> PINTURA | D38: =Orçamento!V346 -> 0 | E38: =Orçamento!X346 -> 0
B39: =Orçamento!O347 -> z. | C39: =Orçamento!P347 -> DIVERSOS | D39: =Orçamento!V347 -> 0 | E39: =Orçamento!X347 -> 0
A40: F | B40: TOTAL GERAL DO ORÇAMENTO (R$) C/BDI | D40: =SUM(D14:D39) -> 0 | E40: =SUM(E14:E39) -> 0

Sheet Parc Maior Relev
B3: UNIDADE ESCOLAR | E3: CÓDIGO INEP
B4: =Orçamento!$O$4 -> ESCOLA ESTADUAL EDMO TEIXEIRA | E4: =Orçamento!$V$4 -> 52027147
B6: OBRA | E6: CIDADE
B7: =Orçamento!$O$7 -> REFORMA E IMPLANTAÇÃO | E7: =Orçamento!$V$7 -> IPORÁ
B9: CRE | E9: ÁREA TOTAL CONSTRUÍDA (M²)
B10: =Orçamento!$O$10 -> IPORÁ | E10: =Orçamento!$S$13 -> 1124.37
A11: FILTRO
B12: PARCELA DE MAIOR RELEVÂNCIA
B13: CÓDIGO | C13: SERVIÇO | D13: DESCRIÇÃO | E13: UNID | F13: QUANT | G13: PARC. MAIOR RELEV (50%)
B14: 160000 | C14: COBERTURAS | D14: TELHA CERÂMICA | E14: M2 | F14: =Orçamento!T154 -> 415.52 | G14: =F14*0.5 -> 207.76
B15: 160000 | C15: COBERTURAS | D15: TELHA METÁLICA | E15: M2 | F15: =Orçamento!T280 -> 478.51 | G15: 239.255
B16: 220000 | C16: REVESTIMENTO DE PISO | D16: PISO GRANITINA | E16: M2 | F16: =Orçamento!T168 -> 552.36 | G16: 276.18
B17: 220000 | C17: REVESTIMENTO DE PISO | D17: PISO LAMINADO | E17: M2 | F17: =Orçamento!T288 -> 174.2 | G17: 87.1
A18: F
A19: F | B19: (*) Para os fins do inciso I dp § 1º do Art. 30 da Lei Federal 8.666/93, são consideradas parcelas de maior relevância técnica as execuções apresentadas
A20: F

Sheet Composições
A4: UNIDADE ESCOLAR | H4: CÓDIGO INEP
A5: =Orçamento!$O$4 -> ESCOLA ESTADUAL EDMO TEIXEIRA | H5: =Orçamento!$V$4 -> 52027147
A7: OBRA | H7: CIDADE
A8: =Orçamento!$O$7 -> REFORMA E IMPLANTAÇÃO | H8: =Orçamento!$V$7 -> IPORÁ
A10: CRE | D10: ENDEREÇO | H10: REFERÊNCIA AGETOP
A11: =Orçamento!$O$10 -> IPORÁ | D11: =Orçamento!$R$10 -> AV. CAIAPÓ 282, SAO FRANCISCO, CEP:76200-000 | H11: =Orçamento!$V$10 -> DEZ/18 | I11: =Orçamento!$W$10 -> DESONERADA
A13: DATA | D13: ÁREA TOTAL CONSTRUÍDA (M²) | H13: REFERÊNCIA SINAPI
A14: =Orçamento!$S$7 -> 2020-04-23 | D14: =Orçamento!$S$13 -> 1124.37 | H14: =Orçamento!$V$13 -> MAI/19 | I14: =Orçamento!$W$13 -> DESONERADA
A16: COMPOSIÇÕES DE CUSTOS UNITÁRIOS - SEE-GO
A17: 387 | B17: FONTE | C17: CÓDIGO | D17: DESCRIÇÃO | E17: UNIDADE | F17: COEFIC. | G17: CUSTO UNITÁRIO | I17: CUSTO TOTAL (A) + (B) + (C) + (D) + (E)
G18: DESONERADO | H18: NÃO DESONER. | I18: DESONERADO | J18: NÃO DESONER.
B19: COMPOSIÇÃO | C19: COMP 387_SEE | D19: LÂMPADA LED TUBULAR 18W | E19: UN | I19: 22.28 | J19: 22.33
B20: AGETOP_I | C20: 8 | D20: AJUDANTE | E20: h | F20: 0.015 | G20: 8.2 | H20: 9.51 | I20: 0.12 | J20: 0.14
B21: AGETOP_I | C21: 12 | D21: ELETRICISTA | E21: h | F21: 0.015 | G21: 13.4 | H21: 15.53 | I21: 0.2 | J21: 0.23
G22: 0 | H22: 0 | I22: 0 | J22: 0
B23: MÃO DE OBRA (B) - TOTAL | I23: 0.32 | J23: 0.37
B24: COTAÇÃO | C24: COT 195_SEE | D24: LÂMPADA LED TUBULAR 18W | E24: UN | F24: 1 | G24: 21.96 | H24: 21.96 | I24: 21.96 | J24: 21.96
G25: 0 | H25: 0 | I25: 0 | J25: 0
G26: 0 | H26: 0 | I26: 0 | J26: 0
B27: MATERIAL (C) - TOTAL | I27: 21.96 | J27: 21.96
A29: 24 | B29: FONTE | C29: CÓDIGO | D29: DESCRIÇÃO | E29: UNIDADE | F29: COEFIC. | G29: CUSTO UNITÁRIO | I29: CUSTO TOTAL (A) + (B) + (C) + (D) + (E)
G30: DESONERADO | H30: NÃO DESONER. | I30: DESONERADO | J30: NÃO DESONER.
B31: COMPOSIÇÃO | C31: COMP 024_SEE | D31: SINALIZADOR FOTOLUMINESCENTE PARA EXTINTOR | E31: UN | G31: - | H31: - | I31: 25.27 | J31: 25.39
B32: AGETOP_I | C32: 5 | D32: SERVENTE | E32: h | F32: 0.09 | G32: 8.2 | H32: 9.51 | I32: 0.74 | J32: 0.86
G33: 0 | H33: 0 | I33: 0 | J33: 0
G34: 0 | H34: 0 | I34: 0 | J34: 0
B35: MÃO DE OBRA (B) - TOTAL | I35: 0.74 | J35: 0.86
B36: AGETOP_I | C36: 3070 | D36: BUCHA DE NYLON S-6 | E36: un | F36: 2 | G36: 0.04 | H36: 0.04 | I36: 0.08 | J36: 0.08
B37: AGETOP_I | C37: 3393 | D37: PARAFUSO P/BUCHA S-6 | E37: un | F37: 2 | G37: 0.08 | H37: 0.08 | I37: 0.16 | J37: 0.16
B38: SINAPI_I | C38: 37556 | D38: PLACA DE SINALIZACAO DE SEGURANCA CONTRA INCENDIO, FOTOLUMINESCENTE, QUADRADA, *20 X 20* CM, EM PVC *2* MM ANTI-CHAMAS (SIMBOLOS, CORES E PICTOGRAMAS CONFORME NBR 13434) | E38: UN | F38: 1 | G38: 24.29 | H38: 24.29 | I38: 24.29 | J38: 24.29
B39: MATERIAL (C) - TOTAL | I39: 24.53 | J39: 24.53
A41: 25 | B41: FONTE | C41: CÓDIGO | D41: DESCRIÇÃO | E41: UNIDADE | F41: COEFIC. | G41: CUSTO UNITÁRIO | I41: CUSTO TOTAL (A) + (B) + (C) + (D) + (E)
G42: DESONERADO | H42: NÃO DESONER. | I42: DESONERADO | J42: NÃO DESONER.
B43: COMPOSIÇÃO | C43: COMP 025_SEE | D43: SINALIZADOR FOTOLUMINESCENTE DE EMERGÊNCIA | E43: UN | G43: - | H43: - | I43: 25.27 | J43: 25.39
B44: AGETOP_I | C44: 5 | D44: SERVENTE | E44: h | F44: 0.09 | G44: 8.2 | H44: 9.51 | I44: 0.74 | J44: 0.86
B45: MÃO DE OBRA (B) - TOTAL | I45: 0.74 | J45: 0.86
B46: AGETOP_I | C46: 3070 | D46: BUCHA DE NYLON S-6 | E46: un | F46: 2 | G46: 0.04 | H46: 0.04 | I46: 0.08 | J46: 0.08
B47: AGETOP_I | C47: 3393 | D47: PARAFUSO P/BUCHA S-6 | E47: un | F47: 2 | G47: 0.08 | H47: 0.08 | I47: 0.16 | J47: 0.16
B48: SINAPI_I | C48: 37556 | D48: PLACA DE SINALIZACAO DE SEGURANCA CONTRA INCENDIO, FOTOLUMINESCENTE, QUADRADA, *20 X 20* CM, EM PVC *2* MM ANTI-CHAMAS (SIMBOLOS, CORES E PICTOGRAMAS CONFORME NBR 13434) | E48: UN | F48: 1 | G48: 24.29 | H48: 24.29 | I48: 24.29 | J48: 24.29
B49: MATERIAL (C) - TOTAL | I49: 24.53 | J49: 24.53
A51: 277 | B51: FONTE | C51: CÓDIGO | D51: DESCRIÇÃO | E51: UNIDADE | F51: COEFIC. | G51: CUSTO UNITÁRIO | I51: CUSTO TOTAL (A) + (B) + (C) + (D) + (E)
G52: DESONERADO | H52: NÃO DESONER. | I52: DESONERADO | J52: NÃO DESONER.
B53: COMPOSIÇÃO | C53: COMP 277_SEE | D53: MARCAÇÃO NO PISO - 1X1 M PARA EXTINTOR | E53: M2 | I53: 27.48 | J53: 27.53
B54: AGETOP_I | C54: 5 | D54: SERVENTE | E54: h | F54: 0.0333 | G54: 8.2 | H54: 9.51 | I54: 0.27 | J54: 0.32
G55: 0 | H55: 0 | I55: 0 | J55: 0
G56: 0 | H56: 0 | I56: 0 | J56: 0
B57: MÃO DE OBRA (B) - TOTAL | I57: 0.27 | J57: 0.32
B58: SINAPI_I | C58: 5318 | D58: SOLVENTE DILUENTE A BASE DE AGUARRAS | E58: L | F58: 0.13 | G58: 11.98 | H58: 11.98 | I58: 1.56 | J58: 1.56
B59: SINAPI | C59: 5824 | F59: 0.0033 | G59: 0 | H59: 0 | I59: 0 | J59: 0
B60: SINAPI_I | C60: 7343 | D60: TINTA A BASE DE RESINA ACRILICA, PARA SINALIZACAO HORIZONTAL VIARIA (NBR 11862) | E60: L | F60: 0.6 | G60: 11.05 | H60: 11.05 | I60: 6.63 | J60: 6.63
B61: SINAPI_I | C61: 7348 | D61: TINTA ACRILICA PREMIUM PARA PISO | E61: L | F61: 0.03 | G61: 11.96 | H61: 11.96 | I61: 0.36 | J61: 0.36
B62: SINAPI_I | C62: 25972 | D62: MICROESFERAS DE VIDRO PARA SINALIZACAO HORIZONTAL VIARIA, TIPO I-B (PREMIX) - NBR 16184 | E62: KG | F62: 2.14 | G62: 8.72 | H62: 8.72 | I62: 18.66 | J62: 18.66
B63: SINAPI | C63: 95133 | F63: 0.0033 | G63: 0 | H63: 0 | I63: 0 | J63: 0
B64: MATERIAL (C) - TOTAL | I64: 27.21 | J64: 27.21
A66: 382 | B66: FONTE | C66: CÓDIGO | D66: DESCRIÇÃO | E66: UNIDADE | F66: COEFIC. | G66: CUSTO UNITÁRIO | I66: CUSTO TOTAL (A) + (B) + (C) + (D) + (E)
G67: DESONERADO | H67: NÃO DESONER. | I67: DESONERADO | J67: NÃO DESONER.
B68: COMPOSIÇÃO | C68: COMP 382_SEE | D68: TE DE REDUCAO DE FERRO GALVANIZADO, COM ROSCA BSP, DE 3/4" X 1/2" | E68: UN | I68: 21.35 | J68: 23.44
B69: AGETOP_I | C69: 8 | D69: AJUDANTE | E69: h | F69: 0.6 | G69: 8.2 | H69: 9.51 | I69: 4.92 | J69: 5.71
B70: AGETOP_I | C70: 11 | D70: ENCANADOR | E70: h | F70: 0.6105 | G70: 13.4 | H70: 15.53 | I70: 8.18 | J70: 9.48
G71: 0 | H71: 0 | I71: 0 | J71: 0
B72: MÃO DE OBRA (B) - TOTAL | I72: 13.1 | J72: 15.19
B73: SINAPI_I | C73: 3146 | D73: FITA VEDA ROSCA EM ROLOS DE 18 MM X 10 M (L X C) | E73: UN | F73: 0.120754717 | G73: 3.5 | H73: 3.5 | I73: 0.42 | J73: 0.42
B74: SINAPI_I | C74: 6302 | D74: TE DE REDUCAO DE FERRO GALVANIZADO, COM ROSCA BSP, DE 3/4" X 1/2" | E74: UN | F74: 1 | G74: 7.83 | H74: 7.83 | I74: 7.83 | J74: 7.83
G75: 0 | H75: 0 | I75: 0 | J75: 0
B76: MATERIAL (C) - TOTAL | I76: 8.25 | J76: 8.25
A78: 383 | B78: FONTE | C78: CÓDIGO | D78: DESCRIÇÃO | E78: UNIDADE | F78: COEFIC. | G78: CUSTO UNITÁRIO | I78: CUSTO TOTAL (A) + (B) + (C) + (D) + (E)
G79: DESONERADO | H79: NÃO DESONER. | I79: DESONERADO | J79: NÃO DESONER.
B80: COMPOSIÇÃO | C80: COMP 383_SEE | D80: BUCHA DE REDUCAO DE FERRO GALVANIZADO, COM ROSCA BSP, DE 1/2" X 1/4" | E80: UN | I80: 6.67 | J80: 7.22
B81: AGETOP_I | C81: 8 | D81: AJUDANTE | E81: h | F81: 0.16 | G81: 8.2 | H81: 9.51 | I81: 1.31 | J81: 1.52
B82: AGETOP_I | C82: 11 | D82: ENCANADOR | E82: h | F82: 0.16 | G82: 13.4 | H82: 15.53 | I82: 2.14 | J82: 2.48
G83: 0 | H83: 0 | I83: 0 | J83: 0
B84: MÃO DE OBRA (B) - TOTAL | I84: 3.45 | J84: 4
B85: AGETOP_I | C85: H689 | D85: FITA VEDAROSCA 12 MM | E85: m | F85: 1.2 | G85: 0.28 | H85: 0.28 | I85: 0.34 | J85: 0.34
B86: SINAPI_I | C86: 770 | D86: BUCHA DE REDUCAO DE FERRO GALVANIZADO, COM ROSCA BSP, DE 1/2" X 1/4" | E86: UN | F86: 1 | G86: 2.88 | H86: 2.88 | I86: 2.88 | J86: 2.88
G87: 0 | H87: 0 | I87: 0 | J87: 0
B88: MATERIAL (C) - TOTAL | I88: 3.22 | J88: 3.22
A90: 212 | B90: FONTE | C90: CÓDIGO | D90: DESCRIÇÃO | E90: UNIDADE | F90: COEFIC. | G90: CUSTO UNITÁRIO | I90: CUSTO TOTAL (A) + (B) + (C) + (D) + (E)
G91: DESONERADO | H91: NÃO DESONER. | I91: DESONERADO | J91: NÃO DESONER.
B92: COMPOSIÇÃO | C92: COMP 212_SEE | D92: NIPLE DE REDUÇÃO 1/2" X 1/4" BSP | E92: UN | I92: 9.5 | J92: 10.05
B93: AGETOP_I | C93: 8 | D93: AJUDANTE | E93: h | F93: 0.16 | G93: 8.2 | H93: 9.51 | I93: 1.31 | J93: 1.52
B94: AGETOP_I | C94: 11 | D94: ENCANADOR | E94: h | F94: 0.16 | G94: 13.4 | H94: 15.53 | I94: 2.14 | J94: 2.48
G95: 0 | H95: 0 | I95: 0 | J95: 0
B96: MÃO DE OBRA (B) - TOTAL | I96: 3.45 | J96: 4
B97: COTAÇÃO | C97: COT 103_SEE | D97: NIPLE DE REDUÇÃO 1/2" X 1/4" BSP | E97: UN | F97: 1 | G97: 6.053333333 | H97: 6.053333333 | I97: 6.05 | J97: 6.05
G98: 0 | H98: 0 | I98: 0 | J98: 0
G99: 0 | H99: 0 | I99: 0 | J99: 0
B100: MATERIAL (C) - TOTAL | I100: 6.05 | J100: 6.05
A102: 213 | B102: FONTE | C102: CÓDIGO | D102: DESCRIÇÃO | E102: UNIDADE | F102: COEFIC. | G102: CUSTO UNITÁRIO | I102: CUSTO TOTAL (A) + (B) + (C) + (D) + (E)
G103: DESONERADO | H103: NÃO DESONER. | I103: DESONERADO | J103: NÃO DESONER.
B104: COMPOSIÇÃO | C104: COMP 213_SEE | D104: NIPLE DE REDUÇÃO 3/4" X 1/2" BSP | E104: UN | I104: 13.16 | J104: 13.71
B105: AGETOP_I | C105: 8 | D105: AJUDANTE | E105: h | F105: 0.16 | G105: 8.2 | H105: 9.51 | I105: 1.31 | J105: 1.52
B106: AGETOP_I | C106: 11 | D106: ENCANADOR | E106: h | F106: 0.16 | G106: 13.4 | H106: 15.53 | I106: 2.14 | J106: 2.48
G107: 0 | H107: 0 | I107: 0 | J107: 0
B108: MÃO DE OBRA (B) - TOTAL | I108: 3.45 | J108: 4
B109: COTAÇÃO | C109: COT 104_SEE | D109: NIPLE DE REDUÇÃO 3/4" X 1/2" BSP | E109: UN | F109: 1 | G109: 9.71 | H109: 9.71 | I109: 9.71 | J109: 9.71
G110: 0 | H110: 0 | I110: 0 | J110: 0
G111: 0 | H111: 0 | I111: 0 | J111: 0
B112: MATERIAL (C) - TOTAL | I112: 9.71 | J112: 9.71
A114: 237 | B114: FONTE | C114: CÓDIGO | D114: DESCRIÇÃO | E114: UNIDADE | F114: COEFIC. | G114: CUSTO UNITÁRIO | I114: CUSTO TOTAL (A) + (B) + (C) + (D) + (E)
G115: DESONERADO | H115: NÃO DESONER. | I115: DESONERADO | J115: NÃO DESONER.
B116: COMPOSIÇÃO | C116: COMP 237_SEE | D116: FITA ANTICORROSIVA | E116: M | I116: 11.14 | J116: 11.83
B117: AGETOP_I | C117: 8 | D117: AJUDANTE | E117: h | F117: 0.2 | G117: 8.2 | H117: 9.51 | I117: 1.64 | J117: 1.9
B118: AGETOP_I | C118: 12 | D118: ELETRICISTA | E118: h | F118: 0.2 | G118: 13.4 | H118: 15.53 | I118: 2.68 | J118: 3.11
G119: 0 | H119: 0 | I119: 0 | J119: 0
B120: MÃO DE OBRA (B) - TOTAL | I120: 4.32 | J120: 5.01
B121: SINAPI_I | C121: 39634 | D121: FITA ADESIVA ANTICORROSIVA DE PVC FLEXIVEL, COR PRETA, PARA PROTECAO TUBULACAO, 50 MM X 30 M (L X C), E= *0,25* MM | E121: M | F121: 1 | G121: 6.82 | H121: 6.82 | I121: 6.82 | J121: 6.82
G122: 0 | H122: 0 | I122: 0 | J122: 0
G123: 0 | H123: 0 | I123: 0 | J123: 0
B124: MATERIAL (C) - TOTAL | I124: 6.82 | J124: 6.82
A126: 542 | B126: FONTE | C126: CÓDIGO | D126: DESCRIÇÃO | E126: UNIDADE | F126: COEFIC. | G126: CUSTO UNITÁRIO | I126: CUSTO TOTAL (A) + (B) + (C) + (D) + (E)
G127: DESONERADO | H127: NÃO DESONER. | I127: DESONERADO | J127: NÃO DESONER.
B128: COMPOSIÇÃO | C128: COMP 542_SEE | D128: VÁLVULA UGV 3/4" (S) LATÃO | E128: UN | I128: 25.17 | J128: 26.66
B129: AGETOP_I | C129: 8 | D129: AJUDANTE | E129: h | F129: 0.432 | G129: 8.2 | H129: 9.51 | I129: 3.54 | J129: 4.11
B130: AGETOP_I | C130: 11 | D130: ENCANADOR | E130: h | F130: 0.432 | G130: 13.4 | H130: 15.53 | I130: 5.79 | J130: 6.71
G131: 0 | H131: 0 | I131: 0 | J131: 0
B132: MÃO DE OBRA (B) - TOTAL | I132: 9.33 | J132: 10.82
B133: COTAÇÃO | C133: COT 281_SEE | D133: VÁLVULA UGV 3/4" (S) LATÃO | E133: UN | F133: 1 | G133: 15.83666667 | H133: 15.83666667 | I133: 15.84 | J133: 15.84
G134: 0 | H134: 0 | I134: 0 | J134: 0
G135: 0 | H135: 0 | I135: 0 | J135: 0
B136: MATERIAL (C) - TOTAL | I136: 15.84 | J136: 15.84
A138: 543 | B138: FONTE | C138: CÓDIGO | D138: DESCRIÇÃO | E138: UNIDADE | F138: COEFIC. | G138: CUSTO UNITÁRIO | I138: CUSTO TOTAL (A) + (B) + (C) + (D) + (E)
G139: DESONERADO | H139: NÃO DESONER. | I139: DESONERADO | J139: NÃO DESONER.
B140: COMPOSIÇÃO | C140: COMP 543_SEE | D140: VÁLVULA UGV 1/2" (S) LATÃO | E140: UN | I140: 24.5 | J140: 25.99
B141: AGETOP_I | C141: 8 | D141: AJUDANTE | E141: h | F141: 0.432 | G141: 8.2 | H141: 9.51 | I141: 3.54 | J141: 4.11
B142: AGETOP_I | C142: 11 | D142: ENCANADOR | E142: h | F142: 0.432 | G142: 13.4 | H142: 15.53 | I142: 5.79 | J142: 6.71
G143: 0 | H143: 0 | I143: 0 | J143: 0
B144: MÃO DE OBRA (B) - TOTAL | I144: 9.33 | J144: 10.82
B145: COTAÇÃO | C145: COT 282_SEE | D145: VÁLVULA UGV 1/2" (S) LATÃO | E145: UN | F145: 1 | G145: 15.16666667 | H145: 15.16666667 | I145: 15.17 | J145: 15.17
G146: 0 | H146: 0 | I146: 0 | J146: 0
G147: 0 | H147: 0 | I147: 0 | J147: 0
B148: MATERIAL (C) - TOTAL | I148: 15.17 | J148: 15.17
A150: 211 | B150: FONTE | C150: CÓDIGO | D150: DESCRIÇÃO | E150: UNIDADE | F150: COEFIC. | G150: CUSTO UNITÁRIO | I150: CUSTO TOTAL (A) + (B) + (C) + (D) + (E)
G151: DESONERADO | H151: NÃO DESONER. | I151: DESONERADO | J151: NÃO DESONER.
B152: COMPOSIÇÃO | C152: COMP 211_SEE | D152: REGULADOR DE 2º ESTÁGIO 5KG/H | E152: UN | I152: 85.46 | J152: 89.42
B153: AGETOP_I | C153: 8 | D153: AJUDANTE | E153: h | F153: 1.15 | G153: 8.2 | H153: 9.51 | I153: 9.43 | J153: 10.94
B154: AGETOP_I | C154: 11 | D154: ENCANADOR | E154: h | F154: 1.15 | G154: 13.4 | H154: 15.53 | I154: 15.41 | J154: 17.86
G155: 0 | H155: 0 | I155: 0 | J155: 0
B156: MÃO DE OBRA (B) - TOTAL | I156: 24.84 | J156: 28.8
B157: COTAÇÃO | C157: COT 102_SEE | D157: REGULADOR DE 2º ESTÁGIO 5KG/H | E157: UN | F157: 1 | G157: 59.83333333 | H157: 59.83333333 | I157: 59.83 | J157: 59.83
B158: AGETOP_I | C158: H689 | D158: FITA VEDAROSCA 12 MM | E158: m | F158: 2.82 | G158: 0.28 | H158: 0.28 | I158: 0.79 | J158: 0.79
G159: 0 | H159: 0 | I159: 0 | J159: 0
B160: MATERIAL (C) - TOTAL | I160: 60.62 | J160: 60.62
A162: 210 | B162: FONTE | C162: CÓDIGO | D162: DESCRIÇÃO | E162: UNIDADE | F162: COEFIC. | G162: CUSTO UNITÁRIO | I162: CUSTO TOTAL (A) + (B) + (C) + (D) + (E)
G163: DESONERADO | H163: NÃO DESONER. | I163: DESONERADO | J163: NÃO DESONER.
B164: COMPOSIÇÃO | C164: COMP 210_SEE | D164: REGULADOR DE 1º ESTÁGIO 60KG/H MODELO AP-40 COM MANÔMETRO | E164: UN | I164: 231.21 | J164: 235.17
B165: AGETOP_I | C165: 8 | D165: AJUDANTE | E165: h | F165: 1.15 | G165: 8.2 | H165: 9.51 | I165: 9.43 | J165: 10.94
B166: AGETOP_I | C166: 11 | D166: ENCANADOR | E166: h | F166: 1.15 | G166: 13.4 | H166: 15.53 | I166: 15.41 | J166: 17.86
G167: 0 | H167: 0 | I167: 0 | J167: 0
B168: MÃO DE OBRA (B) - TOTAL | I168: 24.84 | J168: 28.8
B169: COTAÇÃO | C169: COT 101_SEE | D169: REGULADOR DE 1º ESTÁGIO 60KG/H MODELO AP-40 COM MANÔMETRO | E169: UN | F169: 1 | G169: 205.5766667 | H169: 205.5766667 | I169: 205.58 | J169: 205.58
B170: AGETOP_I | C170: H689 | D170: FITA VEDAROSCA 12 MM | E170: m | F170: 2.82 | G170: 0.28 | H170: 0.28 | I170: 0.79 | J170: 0.79
G171: 0 | H171: 0 | I171: 0 | J171: 0
B172: MATERIAL (C) - TOTAL | I172: 206.37 | J172: 206.37
A174: 235 | B174: FONTE | C174: CÓDIGO | D174: DESCRIÇÃO | E174: UNIDADE | F174: COEFIC. | G174: CUSTO UNITÁRIO | I174: CUSTO TOTAL (A) + (B) + (C) + (D) + (E)
G175: DESONERADO | H175: NÃO DESONER. | I175: DESONERADO | J175: NÃO DESONER.
B176: COMPOSIÇÃO | C176: COMP 235_SEE | D176: PLACA DE SINALIZAÇÃO EM PVC COD 01 - (300X300) PROIBIDO FUMAR | E176: UN | I176: 25.27 | J176: 25.39
B177: AGETOP_I | C177: 5 | D177: SERVENTE | E177: h | F177: 0.09 | G177: 8.2 | H177: 9.51 | I177: 0.74 | J177: 0.86
G178: 0 | H178: 0 | I178: 0 | J178: 0
G179: 0 | H179: 0 | I179: 0 | J179: 0
B180: MÃO DE OBRA (B) - TOTAL | I180: 0.74 | J180: 0.86
B181: AGETOP_I | C181: 3070 | D181: BUCHA DE NYLON S-6 | E181: un | F181: 2 | G181: 0.04 | H181: 0.04 | I181: 0.08 | J181: 0.08
B182: AGETOP_I | C182: 3393 | D182: PARAFUSO P/BUCHA S-6 | E182: un | F182: 2 | G182: 0.08 | H182: 0.08 | I182: 0.16 | J182: 0.16
B183: SINAPI_I | C183: 37556 | D183: PLACA DE SINALIZACAO DE SEGURANCA CONTRA INCENDIO, FOTOLUMINESCENTE, QUADRADA, *20 X 20* CM, EM PVC *2* MM ANTI-CHAMAS (SIMBOLOS, CORES E PICTOGRAMAS CONFORME NBR 13434) | E183: UN | F183: 1 | G183: 24.29 | H183: 24.29 | I183: 24.29 | J183: 24.29
B184: MATERIAL (C) - TOTAL | I184: 24.53 | J184: 24.53
A186: 236 | B186: FONTE | C186: CÓDIGO | D186: DESCRIÇÃO | E186: UNIDADE | F186: COEFIC. | G186: CUSTO UNITÁRIO | I186: CUSTO TOTAL (A) + (B) + (C) + (D) + (E)
G187: DESONERADO | H187: NÃO DESONER. | I187: DESONERADO | J187: NÃO DESONER.
B188: COMPOSIÇÃO | C188: COMP 236_SEE | D188: PLACA DE SINALIZAÇÃO EM PVC COD 06 - (300X300) PERIGO INFLAMÁVEL | E188: UN | I188: 25.27 | J188: 25.39
B189: AGETOP_I | C189: 5 | D189: SERVENTE | E189: h | F189: 0.09 | G189: 8.2 | H189: 9.51 | I189: 0.74 | J189: 0.86
G190: 0 | H190: 0 | I190: 0 | J190: 0
G191: 0 | H191: 0 | I191: 0 | J191: 0
B192: MÃO DE OBRA (B) - TOTAL | I192: 0.74 | J192: 0.86
B193: AGETOP_I | C193: 3070 | D193: BUCHA DE NYLON S-6 | E193: un | F193: 2 | G193: 0.04 | H193: 0.04 | I193: 0.08 | J193: 0.08
B194: AGETOP_I | C194: 3393 | D194: PARAFUSO P/BUCHA S-6 | E194: un | F194: 2 | G194: 0.08 | H194: 0.08 | I194: 0.16 | J194: 0.16
B195: SINAPI_I | C195: 37556 | D195: PLACA DE SINALIZACAO DE SEGURANCA CONTRA INCENDIO, FOTOLUMINESCENTE, QUADRADA, *20 X 20* CM, EM PVC *2* MM ANTI-CHAMAS (SIMBOLOS, CORES E PICTOGRAMAS CONFORME NBR 13434) | E195: UN | F195: 1 | G195: 24.29 | H195: 24.29 | I195: 24.29 | J195: 24.29
B196: MATERIAL (C) - TOTAL | I196: 24.53 | J196: 24.53
A198: 84 | B198: FONTE | C198: CÓDIGO | D198: DESCRIÇÃO | E198: UNIDADE | F198: COEFIC. | G198: CUSTO UNITÁRIO | I198: CUSTO TOTAL (A) + (B) + (C) + (D) + (E)
G199: DESONERADO | H199: NÃO DESONER. | I199: DESONERADO | J199: NÃO DESONER.
B200: COMPOSIÇÃO | C200: COMP 084_SEE | D200: GUARDA-CORPO COM CORRIMÃO - SEDUC | E200: M | I200: 204.6 | J200: 209.46
B201: AGETOP_I | C201: 25 | D201: OFICIAL "B" | E201: h | F201: 1.1 | G201: 13.4 | H201: 15.53 | I201: 14.74 | J201: 17.08
B202: AGETOP_I | C202: 8 | D202: AJUDANTE | E202: h | F202: 1.1 | G202: 8.2 | H202: 9.51 | I202: 9.02 | J202: 10.46
G203: 0 | H203: 0 | I203: 0 | J203: 0
B204: MÃO DE OBRA (B) - TOTAL | I204: 23.76 | J204: 27.54
B205: AGETOP_I | C205: 2376 | D205: TUBO INDUSTRIAL 2" CHAPA 13 | E205: Kg | F205: 7.7778 | G205: 5.23 | H205: 5.23 | I205: 40.68 | J205: 40.68
B206: AGETOP_I | C206: 2504 | D206: TUBO INDUSTRIAL D=25 MM CHAPA 13 | E206: Kg | F206: 4.632 | G206: 5.07 | H206: 5.07 | I206: 23.48 | J206: 23.48
B207: AGETOP_I | C207: 2377 | D207: TUBO INDUSTRIAL 40X40 CH.13 | E207: Kg | F207: 6.342 | G207: 5.07 | H207: 5.07 | I207: 32.15 | J207: 32.15
B208: AGETOP_I | C208: 2421 | D208: TUBO INDUSTRIAL 1.1/2" CHAPA 13 | E208: Kg | F208: 1.4862 | G208: 5.07 | H208: 5.07 | I208: 7.54 | J208: 7.54
B209: AGETOP_I | C209: 2417 | D209: MASSA PLASTICA | E209: Kg | F209: 0.2041 | G209: 10.58 | H209: 10.58 | I209: 2.16 | J209: 2.16
B210: AGETOP_I | C210: 2246 | D210: ELETRODO 2.5 OK | E210: Kg | F210: 0.1146 | G210: 8.7 | H210: 8.7 | I210: 1 | J210: 1
B211: AGETOP_I | C211: 1672 | D211: LIXA PARA FERRO ( NÚMERO 100 ) | E211: un | F211: 0.2551 | G211: 2.12 | H211: 2.12 | I211: 0.54 | J211: 0.54
B212: AGETOP_I | C212: 1264 | D212: DISCO DE DESBASTE 7/8" P/ CONC./FERRO (1/4" X 7") | E212: un | F212: 0.051 | G212: 7 | H212: 7 | I212: 0.36 | J212: 0.36
B213: AGETOP_I | C213: 1334 | D213: DISCO DE CORTE DIAM. 5/8"- 10" | E213: un | F213: 0.373 | G213: 5.5 | H213: 5.5 | I213: 2.05 | J213: 2.05
B214: AGETOP_I | C214: 2902 | D214: FABRICAÇÃO / MONTAGEM | E214: un | F214: 1 | G214: 50.44 | H214: 50.44 | I214: 50.44 | J214: 50.44
B215: AGETOP_I | C215: 2150 | D215: CHAPA DE FERRO DOBRADA No.13 | E215: Kg | F215: 0.4352 | G215: 5.28 | H215: 5.28 | I215: 2.3 | J215: 2.3
B216: AGETOP_I | C216: 2719 | D216: CHAPA PERFILADA 3/16" | E216: Kg | F216: 1.098 | G216: 5.04 | H216: 5.04 | I216: 5.53 | J216: 5.53
B217: AGETOP_I | C217: 2436 | D217: ACO CA-25 - 6,3 MM (1/4") - BARRA LISA A-36 | E217: Kg | F217: 0.38125 | G217: 5.13 | H217: 5.13 | I217: 1.96 | J217: 1.96
B218: AGETOP | C218: 261602 | D218: PINT.ESMALTE/ESQUAD.FERRO C/FUNDO ANTICOR. | E218: m2 | F218: 0.78 | G218: 13.65 | H218: 15.04 | I218: 10.65 | J218: 11.73
B219: MATERIAL (C) - TOTAL | I219: 180.84 | J219: 181.92
